Cogmind - Beta 15 @@@ ROGUE MODE // 2025.08.20 @ 19:29:41 Player: C0-2MO Result: Heading to fleet! Performance ------------- Evolutions (9) 4500 Regions Visited (30) 6000 Robots Destroyed (199) 995 Value Destroyed (10972) 10972 Prototype IDs (179) 3580 Alien Tech Used (7) 1400 Bonus (53878) 53878 TOTAL SCORE: 81325 Bonus ------- Triggered High Security 500 High Alert Combat Kills 5813 Follower Combat Kills 1051 Delivered SUBCON Basin 2000 Registered with UFD 300 Met Optimus in HQ 500 Met Data Miner 300 Met Zhirov 300 Met Warlord at Base 500 MAIN.C Attacked Warlord 500 Used Core Reset Matrix 3000 Destroyed Superfortress 15000 Met Optimus at Protoforge 1000 Completed Drillbomb Mission10000 Destroyed MAIN.C Guards 500 Met MAIN.C 5000 Destroyed MAIN.C Shell 5000 Win 3000 Friendly Fire -386 Cogmind --------- Core Integrity 434/1600 Matter 300/300 Energy 220/220 System Corruption 0% Temperature Cool (0) Movement Core (900) Ox17 Location To Fleet Rendezvous Parts ------- > --- POWER (2) -------- Concept Zero-point Core > --- PROPULSION (10) -- (None) > --- UTILITY (11) ----- Concept Antigrav Storage Unit Experimental Optical Array Experimental Targeting Computer Experimental Core Analyzer Concept Cloak Mesh Graphene Brace Graphene Brace Experimental System Purifier > --- WEAPON (2) ------- Experimental Jetlance > --- INVENTORY (25) --- Concept Zero-point Core Concept Fieldthrust Drive Concept Fieldthrust Drive Concept Dimensional Manipulator Structural Scanner Stasis Canceller Experimental ECM Suite Experimental Force Field Concept Antimissile System System Shield Long-range Tractor Beam Transdimensional Reconstructor High-powered Transdimensional Reconstructor Concept Disintegration Ray (40) Core Cannon Linear Accelerator Concept Miniperforator Peak State ------------ > --- POWER ------------ Experimental Antimatter Reactor Concept Zero-point Core > --- PROPULSION ------- Electron Diverter Electron Diverter Impulse Thruster Array Impulse Thruster Array Impulse Thruster Array Experimental Biomechanical Wings Concept Fieldthrust Drive > --- UTILITY ---------- Concept Antigrav Storage Unit Concept Dimensional Manipulator Experimental Optical Array Experimental Active Sensor Suite Concept Cloak Mesh SHELL Armor Experimental EM Shield Concept Antimissile System > --- WEAPON ----------- Concept Miniperforator Experimental Jetlance > --- INVENTORY -------- Experimental Antimatter Reactor Concept Zero-point Core Concept Zero-point Core Q-thruster Q-thruster Q-thruster Concept Fieldthrust Drive Concept Fieldthrust Drive Concept NT7 Matterbank Concept Dimensional Manipulator Structural Scanner Stasis Canceller Experimental ECM Suite Graphene Brace Graphene Brace System Shield Transdimensional Reconstructor High-powered Transdimensional Reconstructor Concept Disintegration Ray Core Cannon Concept XC Strikerail Concept XC Strikerail [Rating: 275] Favorites ----------- Power Compact Particle Reactor Engine Light Ion Engine Power Core Concept Zero-point Core Reactor Compact Particle Reactor Propulsion Impulse Thruster Treads Improved Treads Wheel Subdweller Monowheel Hover Unit Gravmag Array Flight Unit Impulse Thruster Utility Advanced Hacking Suite Device Advanced Sensor Array Storage Large Storage Unit Processor Experimental Signal Interpreter Hackware Advanced Hacking Suite Protection Scrap Shield Weapon Beam Cannon Energy Gun Subdweller Laser Energy Cannon Beam Cannon Ballistic Gun Concept XC Strikerail Ballistic Cannon Concept Miniperforator Launcher Grenade Launcher Special Weapon Improved Remote Datajack Impact Weapon Maul Slashing Weapon Power Sword Piercing Weapon Makeshift Spear Special Melee Weapon Improved Datajack Build | -11 -10 -10 -8 -8 -6 -6 -6 -6 -5 -5 -5 -5 -5 -5 -5 -4 -4 -4 -4 -4 -4 -4 -3 -3 -3 -2 -2 -2 -1 -1 ------- Run | Yrd Mat Sub Rec Scr Fac Low Low Dat Pro Fac Was Fac Upp Upp Zhi Pro Fac Was Fac Upp Upp War Pro Res Tes Res Qua Frg Acc Com Slots Evolved 18 | . . . . . 8 . . . . 2 . . . . . . 2 . . . . . . 2 . 2 . . 2 . Power 1 | . . . . . . . . . . . . . . . . . 1 . . . . . . . . . . . . . Propulsion 8 | . . . . . 3 . . . . 2 . . . . . . 1 . . . . . . . . 2 . . . . Utility 9 | . . . . . 5 . . . . . . . . . . . . . . . . . . 2 . . . . 2 . Weapon . | . . . . . . . . . . . . . . . . . . . . . . . . . . . . . . . Parts Attached 242 | 7 4 17 1 1 23 3 . . 3 7 1 11 1 4 3 . 3 1 26 . . 11 . 17 9 5 5 55 2 22 Power 29 | 1 1 3 . . 2 1 . . . 1 . 1 . . . . 1 1 6 . . . . 4 1 . . 4 . 2 Engine 5 | 1 1 3 . . . . . . . . . . . . . . . . . . . . . . . . . . . . Core 11 | . . . . . 2 1 . . . 1 . 1 . . . . . . 4 . . . . . . . . 1 . 1 Reactor 13 | . . . . . . . . . . . . . . . . . 1 1 2 . . . . 4 1 . . 3 . 1 Propulsion 69 | 2 1 3 . 1 7 1 . . 2 4 1 4 . 2 . . . . 12 . . 4 . 4 1 2 2 11 . 5 Treads 5 | 1 1 2 . 1 . . . . . . . . . . . . . . . . . . . . . . . . . . Leg . | . . . . . . . . . . . . . . . . . . . . . . . . . . . . . . . Wheel 2 | 1 . 1 . . . . . . . . . . . . . . . . . . . . . . . . . . . . Hover 5 | . . . . . 3 1 . . . 1 . . . . . . . . . . . . . . . . . . . . Flight 57 | . . . . . 4 . . . 2 3 1 4 . 2 . . . . 12 . . 4 . 4 1 2 2 11 . 5 Utility 97 | 2 1 4 1 . 10 1 . . 1 2 . 5 1 1 3 . 1 . 7 . . 3 . 7 6 2 2 24 1 12 Device 47 | 1 . 1 . . 7 . . . . 1 . 2 . 1 . . 1 . 3 . . 1 . 5 3 1 2 12 1 5 Storage 10 | 1 1 . . . . . . . . . . 1 . . 2 . . . 1 . . 1 . 1 . . . 1 . 1 Processor 18 | . . . . . 2 . . . . 1 . . 1 . . . . . 1 . . . . 1 . 1 . 7 . 4 Hackware 11 | . . . . . 1 1 . . 1 . . 2 . . 1 . . . 2 . . 1 . . . . . . . 2 Protection 11 | . . 3 1 . . . . . . . . . . . . . . . . . . . . . 3 . . 4 . . Artifact . | . . . . . . . . . . . . . . . . . . . . . . . . . . . . . . . Weapon 47 | 2 1 7 . . 4 . . . . . . 1 . 1 . . 1 . 1 . . 4 . 2 1 1 1 16 1 3 Energy Gun 8 | 2 . 2 . . . . . . . . . . . . . . . . . . . 2 . . 1 . . . . 1 Energy Cannon 7 | . . 3 . . . . . . . . . . . 1 . . . . . . . 1 . 1 . . . 1 . . Ballistic Gun 5 | . . . . . . . . . . . . . . . . . . . . . . . . . . . . 4 . 1 Ballistic Cannon 4 | . . . . . . . . . . . . . . . . . . . . . . . . . . . . 3 . 1 Launcher 3 | . . 1 . . . . . . . . . . . . . . . . . . . 1 . . . . . 1 . . Special Weapon 9 | . . . . . . . . . . . . . . . . . 1 . . . . . . 1 . . 1 5 1 . Impact Weapon 1 | . 1 . . . . . . . . . . . . . . . . . . . . . . . . . . . . . Slashing Weapon 5 | . . 1 . . 2 . . . . . . . . . . . . . . . . . . . . 1 . 1 . . Piercing Weapon 2 | . . . . . . . . . . . . . . . . . . . 1 . . . . . . . . 1 . . Special Melee Weapon 3 | . . . . . 2 . . . . . . 1 . . . . . . . . . . . . . . . . . . Unidentified Prototypes 43 | . . 1 . . . . . . . . . 1 . . 3 . . 1 . . . 7 . 5 6 1 3 10 . 5 Parts Lost 69 | . 1 7 . . 3 . 1 . . 4 . 1 . 4 . . 7 . 2 . . 2 . 3 . 2 . 10 . 22 Power 8 | . . 2 . . . . . . . . . . . . . . 1 . 2 . . . . . . . . . . 3 Propulsion 35 | . . 2 . . 3 . 1 . . 3 . 1 . 2 . . 5 . . . . 2 . 1 . . . 4 . 11 Utility 17 | . . 1 . . . . . . . 1 . . . 1 . . . . . . . . . 2 . 2 . 4 . 6 Weapon 9 | . 1 2 . . . . . . . . . . . 1 . . 1 . . . . . . . . . . 2 . 2 Highest Loss Streak 13 | . 1 6 . . 1 . 1 . . 2 . 1 . 3 . . 6 . 2 . . 2 . 3 . 1 . 2 . 13 To Critical Strikes . | . . . . . . . . . . . . . . . . . . . . . . . . . . . . . . . Average Backups 10 | 1 8 4 . 6 4 5 5 5 5 4 5 6 13 13 12 13 12 4 8 15 14 13 12 12 11 11 11 18 21 21 Power 1 | . 1 . . . . . . . . . . . 1 2 2 2 1 . . 1 1 1 2 2 3 3 2 2 3 2 Propulsion 1 | 1 3 . . 1 . . . . . . . . 2 1 . . . . 4 9 8 5 4 3 2 1 1 1 3 3 Utility 3 | . . 1 . 2 2 3 3 3 3 2 3 2 4 4 4 5 4 2 2 3 3 3 3 1 1 3 3 7 7 8 Weapon 1 | . 2 2 . . . . . . . . . . 2 3 3 3 2 1 . . 1 1 2 2 2 2 1 2 4 4 Tool/Special . | . . . . . . . . . . . . . . . . . . . . . . . . . . . . . . . Unused Backups 39 | . 2 4 . . 3 . . . . 2 . . . . 1 . 9 . . . . . . . 2 . 4 4 2 6 Power 5 | . . . . . . . . . . . . . . . . . 2 . . . . . . . 1 . . 1 . 1 Propulsion 3 | . 1 2 . . . . . . . . . . . . . . . . . . . . . . . . . . . . Utility 15 | . . 1 . . 2 . . . . 1 . . . . 1 . 4 . . . . . . . . . 1 2 . 3 Weapon 6 | . 1 1 . . 1 . . . . . . . . . . . 1 . . . . . . . . . 1 1 . . Tool/Special 10 | . . . . . . . . . . 1 . . . . . . 2 . . . . . . . 1 . 2 . 2 2 Average Slot Usage (%) 86 | . 99 84 95 99 68 88 86 86 86 91 82 91 94 91 87 88 79 40 73 84 84 88 84 89 92 86 90 84 75 74 Engine 4 | . 14 13 14 14 . . . . . . . . . . . . . . . . . . . . . . . . . . Core 1 | . . . . . 5 6 6 6 6 5 5 4 5 5 5 5 5 . 3 . . . . . . . . 2 4 3 Reactor 3 | . . . . . . . . . . . . . . . . . 3 . 3 10 10 9 10 9 9 8 8 5 4 3 Treads 7 | . 14 26 14 24 . . . . . . . . . . . . . . . . . . . . . . . . . . Wheel 1 | . 14 1 14 3 . . . . . . . . . . . . . . . . . . . . . . . . . . Hover 1 | . . . . . 9 15 13 13 12 8 8 1 . . . . . . . . . . . . . . . . . . Flight 18 | . . . . . 9 6 6 6 7 23 20 30 35 34 35 35 28 5 24 31 31 35 31 32 32 30 33 31 28 27 Device 8 | . 14 . . . 15 24 20 20 20 10 5 10 11 10 10 11 10 10 8 10 10 5 5 13 11 12 12 11 12 15 Storage 4 | . 14 1 14 14 . . . . . . . 2 5 5 5 5 4 . 3 5 5 5 5 4 4 4 4 4 4 4 Processor 6 | . . . . . 8 13 13 13 13 10 11 7 9 11 11 11 10 10 11 10 10 10 10 9 9 10 13 10 8 6 Hackware 6 | . . . . . 4 8 13 13 13 17 17 17 12 11 11 11 10 10 10 10 10 14 15 14 14 10 8 7 4 2 Protection 3 | . . 12 9 14 . . . . . . . . . . . . . . . . . . . . . . . . 3 3 Energy Gun 2 | . 17 9 . . . . . . . . . . . . . . . . . . . . . . . . . . . . Energy Cannon 4 | . . 15 14 14 . . . . . . . . . . . . . . . . . . . . . 1 . . . . Slashing Weapon 3 | . . . 14 14 6 6 6 6 6 5 5 5 5 5 5 5 4 . . . . . . . . 1 4 . . . Piercing Weapon 1 | . . . . . . . . . . . . . . . . . . . 4 5 5 4 5 4 4 2 . 2 4 3 Peak Build Rating 275 | 7 10 29 31 22 57 61 61 59 65 84 85 93 93 93 99 93 106 74 116 116 116 137 121 145 163 173 182 254 272 275 Average Rating 105 | 4 9 12 22 17 40 56 59 59 59 80 82 87 92 90 91 93 94 53 90 116 116 125 120 139 141 166 178 226 268 258 On Entrance 91 | . 7 10 29 13 20 54 61 59 59 65 79 85 92 93 89 93 93 54 48 116 116 116 120 121 131 146 172 180 239 271 Naked Turns . | . . . . . . . . . . . . . . . . . . . . . . . . . . . . . . . Heaviest Build 111 | 13 29 34 34 34 34 14 13 13 13 16 12 34 34 34 33 33 45 7 49 49 49 49 48 56 55 64 64 80 107 111 Greatest Support 116 | 16 23 46 20 53 53 14 14 14 25 30 20 50 47 40 40 40 47 13 56 56 56 59 50 58 61 76 78 82 110 116 Greatest Overweight (x) 1 | . 1 1 1 1 . . . . . . . . . . . . . . 1 . . . . . . . . 1 . . Average Overweight (x) . | . . . 1 . . . . . . . . . . . . . . . . . . . . . . . . . . . Largest Inventory Capacity 25 | 8 15 15 15 15 15 5 5 5 5 5 5 15 15 15 15 15 15 5 15 15 15 15 15 15 15 15 15 25 25 25 Average Capacity 13 | 6 13 5 15 15 5 5 5 5 5 5 5 10 15 15 15 15 14 5 11 15 15 15 15 15 15 15 15 22 25 25 Most Carried 25 | 3 10 15 15 14 12 5 5 5 5 5 5 13 14 14 15 15 15 4 15 15 15 15 15 15 15 15 15 25 24 25 Average Carried 11 | 2 8 5 9 6 5 5 5 5 5 4 5 6 13 13 14 15 14 4 8 14 14 14 14 14 14 14 14 21 22 22 Final Capacity 25 | 8 15 15 15 15 5 5 5 5 5 5 5 15 15 15 15 15 5 5 15 15 15 15 15 15 15 15 15 25 25 25 Final Carried 24 | 3 10 15 1 12 5 5 5 5 5 5 5 12 14 13 15 15 4 4 15 15 15 14 15 14 15 15 14 24 23 18 Class Distribution -------------------- 27% | Mutant 24% | Hacker-Scout 16% | Hacker-Ninja 12% | Hacker-Sprinter 7% | Subdweller-Mutant Dominant Class ---------------- Mutant | -10/Materials Mutant | -10/Subcaves Mutant | -8/Recycling Mutant | -8/Scraptown Mutant | -6/Factory Scout | -6/Lower Caves Hacker-Scout | -6/Lower Caves Hacker-Scout | -6/Data Miner Hacker-Scout | -5/Proximity Caves Hacker-Scout | -5/Factory Hacker-Mutant | -5/Waste Hacker-Scout | -5/Factory Hacker-Scout | -5/Upper Caves Hacker-Scout | -5/Upper Caves Hacker-Scout | -5/Zhirov Hacker-Scout | -4/Proximity Caves Hacker-Scout | -4/Factory Hacker-Scout | -4/Waste Hacker-Scout | -4/Factory Hacker-Scout | -4/Upper Caves Hacker-Scout | -4/Upper Caves Hacker-Sprinter | -4/Warlord Hacker-Sprinter | -3/Proximity Caves Hacker-Ninja | -3/Research Hacker-Ninja | -3/Testing Hacker-Ninja | -2/Research Hacker-Sprinter | -2/Quarantine Hacker-Ninja | -2/Protoforge Ninja | -1/Access Ninja | -1/Command Resources | -11 -10 -10 -8 -8 -6 -6 -6 -6 -5 -5 -5 -5 -5 -5 -5 -4 -4 -4 -4 -4 -4 -4 -3 -3 -3 -2 -2 -2 -1 -1 ----------- Run | Yrd Mat Sub Rec Scr Fac Low Low Dat Pro Fac Was Fac Upp Upp Zhi Pro Fac Was Fac Upp Upp War Pro Res Tes Res Qua Frg Acc Com Matter Collected 10779 | 270 50 364 71 10 230 30 . . 30 55 . 165 45 20 337 . 63 . 428 51 . 56 36 402 305 74 381 5672 153 1481 Remotely . | . . . . . . . . . . . . . . . . . . . . . . . . . . . . . . . Salvage Created 12034 | 135 455 800 11 . 107 . . . 55 51 . 142 . . 337 . 31 . 219 . . . . 316 353 74 387 6010 205 2346 Parts 622 | 8 26 48 . . 15 . . . 1 6 . 18 . . 1 . 2 . 18 . . . . 14 25 4 22 331 18 65 Haulers Intercepted 3 | . 2 . . . . . . . . . . . . . . . . . 1 . . . . . . . . . . . Recyclers Shooed 1 | . . . . . . . . . . . . . . . . . . . . . . . . 1 . . . . . . Parts Field Recycled . | . . . . . . . . . . . . . . . . . . . . . . . . . . . . . . . Retrieved Matter . | . . . . . . . . . . . . . . . . . . . . . . . . . . . . . . . Parts Self-Destructed 17 | . . 16 . . . . . . . . . . . . 1 . . . . . . . . . . . . . . . Prevented 2 | . . 1 . . . . . . . . . . . 1 . . . . . . . . . . . . . . . . Kills | -11 -10 -10 -8 -8 -6 -6 -6 -6 -5 -5 -5 -5 -5 -5 -5 -4 -4 -4 -4 -4 -4 -4 -3 -3 -3 -2 -2 -2 -1 -1 ------- Run | Yrd Mat Sub Rec Scr Fac Low Low Dat Pro Fac Was Fac Upp Upp Zhi Pro Fac Was Fac Upp Upp War Pro Res Tes Res Qua Frg Acc Com Combat Hostiles Destroyed 137 | . 8 24 . . . . . . . . . . . . . . . . 2 . . . . . . . . 81 2 20 Melee 15 | . . . . . . . . . . . . . . . . . . . 2 . . . . . . . . 12 . 1 Guns 21 | . 4 7 . . . . . . . . . . . . . . . . . . . . . . . . . 10 . . Cannons 87 | . . 11 . . . . . . . . . . . . . . . . . . . . . . . . . 59 2 15 AOE 8 | . 3 5 . . . . . . . . . . . . . . . . . . . . . . . . . . . . Classes Destroyed 25 | 2 6 2 . . 1 . . . . . . . . . . . . . 1 . . . . . . . . 13 . . Worker 2 | . 2 . . . . . . . . . . . . . . . . . . . . . . . . . . . . . Builder 14 | . 1 . . . 2 . . . . . . 5 . . . . . . 1 . . . . 1 . . . 1 3 . Tunneler 3 | 2 1 . . . . . . . . . . . . . . . . . . . . . . . . . . . . . Hauler 3 | . 2 . . . . . . . . . . . . . . . . . 1 . . . . . . . . . . . Recycler 4 | 1 . . . . . . . . . . . . . . . . . . . . . . . 1 . . 1 . . 1 Operator 12 | . . . . . 2 . . . . 2 . 1 . . . . . . . . . . . . 2 1 1 1 . 2 Drone 12 | . . . . . . . . . . . . . . . . . . . . . . . . . . . . 12 . . Turret 2 | . . 2 . . . . . . . . . . . . . . . . . . . . . . . . . . . . Watcher 18 | . 2 . . . . . . . . 1 . 1 . . . . 1 . . . . . . 5 3 1 1 2 . 1 Swarmer 19 | . 6 8 . . . . . . . . . . . . . . . . 1 . . . . . . . . 4 . . Saboteur 1 | . . . . . . . . . . . . . . . . . . . . . . . . . . . . 1 . . Grunt 19 | . 2 . . . . . . . . . . . . . . . . . . . . . . . . . . 6 1 10 Brawler 3 | . . . . . . . . . . . . . . . . . . . . . . . . . . . . 3 . . Duelist 1 | . . . . . . . . . . . . . . . . . . . . . . . . . . . . 1 . . Protector 7 | . . . . . . . . . . . . . . . . . . . . . . . . . . . . 6 . 1 Researcher 2 | . . . . . . . . . . . . . . . . . . . . . . . . . . . . 2 . . Sentry 13 | . . . . . . . . . . . . . . . . . . . 1 . . . . . . . . 12 . . Hunter 6 | . . . . . . . . . . . . . . . . . . . . . . . . . . . . 4 . 2 Programmer 14 | . . . . . . . . . . . . . . . . . . . . . . . . . . . . 11 1 2 M Guard 2 | . . . . . . . . . . . . . . . . . . . . . . . . . . . . . . 2 Hotshot 4 | . . . . . . . . . . . . . . . . . . . . . . . . . . . . 4 . . Decapitator 2 | . . . . . . . . . . . . . . . . . . . . . . . . . . . . 2 . . Immortal 1 | . . . . . . . . . . . . . . . . . . . . . . . . . . . . 1 . . Combat Programmer 2 | . . . . . . . . . . . . . . . . . . . . . . . . . . . . . . 2 Striker 6 | . . . . . . . . . . . . . . . . . . . . . . . . . . . . 6 . . Executioner 6 | . . . . . . . . . . . . . . . . . . . . . . . . . . . . 6 . . Alpha 7 2 | . . . . . . . . . . . . . . . . . . . . . . . . . . . . 2 . . Subdweller 16 | . . 16 . . . . . . . . . . . . . . . . . . . . . . . . . . . . Scrapoid 2 | . . . . . . . . . . . . . . . . . . . . . . . . . . . . 2 . . Best Kill Streak 13 | 1 4 6 . . 1 . . . . 1 . 1 . . . . 1 . 1 . . . . 1 2 1 1 13 2 10 Combat Bots Only 13 | . 3 5 . . . . . . . . . . . . . . . . 1 . . . . . . . . 13 1 8 Max Kills in Single Turn 3 | 1 3 2 . . 1 . . . . 1 . 1 . . . . 1 . 1 . . . . 1 1 1 1 3 1 2 Gunslinging 1 | . 1 . . . . . . . . . . . . . . . . . . . . . . . . . . . . . Exploded 3 | . 3 2 . . . . . . . . . . . . . . . . . . . . . . . . . . . . Melee 1 | . . . . . . . . . . . . . . . . . . . 1 . . . . . . . . 1 . 1 Uniques/NPCs Destroyed 1 | . . . . . . . . . . . . . . . . . . . . . . . . . . . . . . 1 MAIN.C Shell (-1/Command) Combat | -11 -10 -10 -8 -8 -6 -6 -6 -6 -5 -5 -5 -5 -5 -5 -5 -4 -4 -4 -4 -4 -4 -4 -3 -3 -3 -2 -2 -2 -1 -1 -------- Run | Yrd Mat Sub Rec Scr Fac Low Low Dat Pro Fac Was Fac Upp Upp Zhi Pro Fac Was Fac Upp Upp War Pro Res Tes Res Qua Frg Acc Com Hostile Shots Fired 995 | . 25 135 . . 84 . 22 . . 46 . 22 . 17 . . 60 1 53 8 6 8 . 28 1 29 12 134 4 300 Missed 425 | . 8 32 . . 51 . 12 . . 28 . 11 . 6 . . 28 . 32 6 2 4 . 10 . 17 8 70 3 97 Intercepted 3 | . . . . . . . . . . . . . . . . . . . . . . . . . . . . . . 3 Hits 570 | . 17 103 . . 33 . 10 . . 18 . 11 . 11 . . 32 1 21 2 4 4 . 18 1 12 4 64 1 203 Melee 7 | . . . . . . . . . . . . . . . . . . 1 . . . . . . . 4 . 2 . . Projectile 563 | . 17 103 . . 33 . 10 . . 18 . 11 . 11 . . 32 . 21 2 4 4 . 18 1 8 4 62 1 203 AOE 3 | . . . . . . . . . . . . . . . . . . . . . . . . . . 1 . 2 . . Critical Strikes 21 | . . 2 . . . . . . . 1 . 1 . . . . . . 1 . 1 . . 1 . 1 . 5 . 8 Actively Blocked 11 | . . . . . . . . . . . . . . . . . . . . . . . . . . 1 . 4 . 6 Part Disruptions 2 | . . . . . . . . . . . . . . . . . . . . . . . . . . . . . . 2 Damage Taken 13466 | . 198 1929 . . 433 . 103 . . 314 . 188 . 190 . . 627 51 383 30 75 78 . 516 23 336 86 2484 18 5404 Core 2712 | . 50 181 . . 182 . . . . 33 . 20 . 59 . . 223 51 81 . . . . 17 . 104 20 608 . 1083 Absorbed by Shields 31 | . . . . . . . . . . . . . . . . . . . . . . 19 . . . . . . . 12 Redirected to Shielding 42 | . . . . . . . . . . . . . . . . . . . . . . . . . . . . 42 . . Ignored by Resistances 1292 | . . . . . . . . . . . . . . . . . . . . . . . . . . . . 50 7 1235 Regen/Repaired (Parts) 1647 | . . . . . 7 . . . . 65 . 173 . . . . 56 . 118 . . 33 . 39 68 . . 350 44 694 Core Remaining (%) 61 | 100 . . . 7 . . . . 78 . . . . . . 88 . . . . . . 69 . 98 . . 26 . 27 Volleys Fired 483 | 12 29 118 . . 2 . . . . . . . . 2 . . 1 . . . . . . 3 20 3 11 224 9 49 Largest 2 | 2 2 2 . . 1 . . . . . . . . 1 . . 1 . . . . . . 1 1 1 1 2 1 2 Hottest 300 | 80 80 140 . . 60 . . . . . . . . 81 . . 7 . . . . . . 105 7 105 105 300 50 300 Shots Fired 586 | 24 42 181 . . 2 . . . . . . . . 2 . . 1 . . . . . . 3 20 3 11 234 9 54 Gun 230 | 24 42 75 . . . . . . . . . . . . . . . . . . . . . . . . . 71 . 18 Cannon 283 | . . 87 . . 2 . . . . . . . . 2 . . . . . . . . . 1 . 2 4 145 4 36 Launcher 19 | . . 19 . . . . . . . . . . . . . . . . . . . . . . . . . . . . Special 54 | . . . . . . . . . . . . . . . . . 1 . . . . . . 2 20 1 7 18 5 . Kinetic 254 | . . . . . . . . . . . . . . . . . . . . . . . . . . . . 210 4 40 Thermal 165 | . . 146 . . 2 . . . . . . . . . . . . . . . . . . 1 . 2 4 6 . 4 Explosive 19 | . . 19 . . . . . . . . . . . . . . . . . . . . . . . . . . . . Electromagnetic 84 | 24 42 16 . . . . . . . . . . . 2 . . . . . . . . . . . . . . . . Entropic 10 | . . . . . . . . . . . . . . . . . . . . . . . . . . . . . . 10 Robot Hit Streak 35 | 7 7 35 . . 15 . . . . . . . . . . . 1 . . . . . . 3 6 2 9 19 6 10 Robot Miss Streak 21 | 2 5 3 . . 1 . . . . . . . . . . . . . . . . . . . 3 . . 21 3 6 Penetration Max 2 | . . . . . . . . . . . . . . . . . . . . . . . . . . . . 2 . 1 Secondary Targets 1 | . 1 . . . . . . . . . . . . . . . . . . . . . . . . . . . . . Max Gunslinging Chain 1 | . 1 . . . . . . . . . . . . . . . . . . . . . . . . . . . . . Shots Hit Robots 578 | 16 26 95 2 . 9 . . . 2 4 . 9 . . 12 . 2 . 15 . . . . 22 29 4 15 226 10 80 Core Hits 408 | 4 13 48 . . 2 . . . 1 2 . 6 . . 2 . 1 . 6 . . . . 11 9 2 5 217 7 72 Critical Kills 87 | . . 1 . . . . . . . . . . . . . . . . . . . . . . . . . 64 2 20 Critical Parts Destroyed 94 | . 2 . . . . . . . . . . . . . . . . . . . . . . . . . . 69 3 20 Critical Strikes 253 | . 2 1 . . . . . . . . . 1 . . . . . . 3 . . . . 1 1 . . 179 8 57 Meltdown 5 | . . 1 . . . . . . . . . . . . . . . . . . . . . . . . . . . 4 Destroy 209 | . . . . . . . . . . . . . . . . . . . . . . . . . . . . 167 5 37 Smash 2 | . 2 . . . . . . . . . . . . . . . . . . . . . . . . . . . . . Sever 2 | . . . . . . . . . . . . 1 . . . . . . . . . . . . . . . 1 . . Impale 35 | . . . . . . . . . . . . . . . . . . . 3 . . . . 1 1 . . 11 3 16 Melee Attacks 620 | . 8 4 4 . 70 1 4 . 2 36 . 59 . 4 12 1 25 . 43 2 3 . 2 82 35 35 28 88 17 55 Impact 8 | . 8 . . . . . . . . . . . . . . . . . . . . . . . . . . . . . Slashing 278 | . . 4 4 . 67 1 4 . 2 34 . 59 . 4 12 1 25 . . . . . . . . 4 28 29 . . Piercing 329 | . . . . . . . . . . . . . . . . . . . 43 2 3 . 2 82 35 31 . 59 17 55 Sneak Attacks 46 | . 4 . . . 5 . . . . 2 . 8 . . . . 1 . 2 . . . . 5 . . 1 13 3 2 Combat Hostiles . | . . . . . . . . . . . . . . . . . . . . . . . . . . . . . . . Follow-up Attacks . | . . . . . . . . . . . . . . . . . . . . . . . . . . . . . . . Damage Inflicted 19632 | 214 822 2106 143 . 440 . . . 174 211 . 757 . . 993 . 72 . 518 . . . . 976 1209 108 915 6606 425 2943 Guns 4029 | 182 321 742 . . . . . . . . . . . . . . . . . . . . . . . . . 2097 . 687 Cannons 2892 | . . 989 . . 17 . . . . . . . . . . . . . . . . . . . . . . 1163 45 678 Explosions 508 | 32 101 375 . . . . . . . . . . . . . . . . . . . . . . . . . . . . Melee 12203 | . 400 . 143 . 423 . . . 174 211 . 757 . . 993 . 72 . 518 . . . . 976 1209 108 915 3346 380 1578 Ramming . | . . . . . . . . . . . . . . . . . . . . . . . . . . . . . . . Kinetic 3836 | . . . . . . . . . . . . . . . . . . . . . . . . . . . . 3260 45 531 Thermal 2170 | 32 101 1620 . . 17 . . . . . . . . . . . . . . . . . . . . . . . . 400 Explosive 375 | . . 375 . . . . . . . . . . . . . . . . . . . . . . . . . . . . Electromagnetic 614 | 182 321 111 . . . . . . . . . . . . . . . . . . . . . . . . . . . . Impact 400 | . 400 . . . . . . . . . . . . . . . . . . . . . . . . . . . . . Slashing 4342 | . . . 143 . 423 . . . 174 211 . 757 . . 993 . 72 . . . . . . . . . 915 654 . . Piercing 7461 | . . . . . . . . . . . . . . . . . . . 518 . . . . 976 1209 108 . 2692 380 1578 Entropic 434 | . . . . . . . . . . . . . . . . . . . . . . . . . . . . . . 434 Highest Corruption 6 | . . . . . 4 . . . . . . . . . . . . 6 6 6 6 6 . 2 2 . . 1 1 2 Average Corruption 3 | . . . . . 1 . . . . . . . . . . . . 6 6 6 6 6 . 2 2 . . 1 1 1 Corruption Purged 10 | . . . . . 8 . . . . . . . . . . . . . . . . . . . . . . . . 2 Corruption Blocked 23 | . . . . . . . . . . . . . . . . . . . . . . . . . . 2 . 21 . . Effects 73 | . . . . . 2 . . . . . . . . . . . . 1 32 3 2 . . 9 7 . . 6 2 9 Message Errors 25 | . . . . . 2 . . . . . . . . . . . . . 13 1 . . . 3 . . . 2 1 3 Matter Fused 20 | . . . . . . . . . . . . . . . . . . . 9 1 . . . 4 3 . . 1 1 1 Heat Flow Errors 6 | . . . . . . . . . . . . . . . . . . . 2 . 1 . . . 1 . . 1 . 1 Energy Discharges 7 | . . . . . . . . . . . . . . . . . . 1 3 1 . . . . 1 . . 1 . . Parts Rejected 2 | . . . . . . . . . . . . . . . . . . . 2 . . . . . . . . . . . Parts Fused 1 | . . . . . . . . . . . . . . . . . . . 1 . . . . . . . . . . . Data Loss (minor) 6 | . . . . . . . . . . . . . . . . . . . . . . . . 1 1 . . 1 . 3 Data Loss (major) 3 | . . . . . . . . . . . . . . . . . . . 2 . . . . . 1 . . . . . Misfires 1 | . . . . . . . . . . . . . . . . . . . . . . . . . . . . . . 1 Alerts 2 | . . . . . . . . . . . . . . . . . . . . . 1 . . 1 . . . . . . Overload Shots . | . . . . . . . . . . . . . . . . . . . . . . . . . . . . . . . Overflow Damage 2894 | 2 135 1 124 . 139 . . . 42 75 . 115 . . 271 . . . 7 . . . . 198 181 . 259 952 284 109 Projectiles 1 | . . 1 . . . . . . . . . . . . . . . . . . . . . . . . . . . . Explosions 2 | 2 . . . . . . . . . . . . . . . . . . . . . . . . . . . . . . Melee 2891 | . 135 . 124 . 139 . . . 42 75 . 115 . . 271 . . . 7 . . . . 198 181 . 259 952 284 109 Knockbacks 22 | . 1 . . . . . . . . . . . . . . . . . . . . . . . . . . 8 . 13 Impact 1 | . 1 . . . . . . . . . . . . . . . . . . . . . . . . . . . . . Kinetic 21 | . . . . . . . . . . . . . . . . . . . . . . . . . . . . 8 . 13 Secondary . | . . . . . . . . . . . . . . . . . . . . . . . . . . . . . . . Self-Inflicted Damage 82 | . . 82 . . . . . . . . . . . . . . . . . . . . . . . . . . . . Shots 3 | . . 3 . . . . . . . . . . . . . . . . . . . . . . . . . . . . Rammed 1 | . . . . . . . . . . . . . . . . . . . . . . . . . . . . . . 1 Targets Rammed 1 | . . . . . . . . . . . . . . . . . . . . . . . . . . . . . . 1 Kicked . | . . . . . . . . . . . . . . . . . . . . . . . . . . . . . . . Crushed . | . . . . . . . . . . . . . . . . . . . . . . . . . . . . . . . Highest Temperature 488 | 88 171 36 . . 12 . 4 . . 1 . 24 42 72 . . 2 . 270 7 153 48 . 146 127 64 18 202 . 488 Average Temperature 30 | 27 66 13 . . 7 . 4 . . 1 . 10 19 33 . . 2 . 78 3 72 19 . 24 9 5 18 68 . 81 Received Heat Transfer 1354 | . 63 387 . . 63 . 42 . . 27 . 54 . 9 . . 33 . 57 9 58 21 . 54 . . 9 135 . 333 Effects 4 | . . . . . . . . . . . . . . . . . . . 3 . . . . . . . . . . 1 Shutdowns 1 | . . . . . . . . . . . . . . . . . . . . . . . . . . . . . . 1 Interference 3 | . . . . . . . . . . . . . . . . . . . 3 . . . . . . . . . . . Siege Activations . | . . . . . . . . . . . . . . . . . . . . . . . . . . . . . . . Martial Activations . | . . . . . . . . . . . . . . . . . . . . . . . . . . . . . . . Shielding Activations . | . . . . . . . . . . . . . . . . . . . . . . . . . . . . . . . Robots Disrupted . | . . . . . . . . . . . . . . . . . . . . . . . . . . . . . . . Combat Hostiles . | . . . . . . . . . . . . . . . . . . . . . . . . . . . . . . . Robots Corrupted 4 | . 4 . . . . . . . . . . . . . . . . . . . . . . . . . . . . . Combat Hostiles 1 | . 1 . . . . . . . . . . . . . . . . . . . . . . . . . . . . . Parts Fried 6 | 1 2 . . . . . . . . . . . . . . . . . . . . . . . . . . 3 . . Impact Corruptions 5 | . 5 . . . . . . . . . . . . . . . . . . . . . . . . . . . . . Robots Melted 5 | . . 1 . . . . . . . . . . . . . . . . . . . . . . . . . . . 4 Combat Hostiles 5 | . . 1 . . . . . . . . . . . . . . . . . . . . . . . . . . . 4 Parts Melted 12 | . . 8 . . . . . . . . . . . . . . . . . . . . . . . . . 2 . 2 Heat Transferred 2960 | 50 100 2773 . . 37 . . . . . . . . . . . . . . . . . . . . . . . . . Parts Sabotaged 2 | . . . . . . . . . . . . . . . . . . . . . . . . . . . . 2 . . Parts Stolen . | . . . . . . . . . . . . . . . . . . . . . . . . . . . . . . . Parts Stripped . | . . . . . . . . . . . . . . . . . . . . . . . . . . . . . . . Power Chain Reactions 2 | 1 1 . . . . . . . . . . . . . . . . . . . . . . . . . . . . . Alert | -11 -10 -10 -8 -8 -6 -6 -6 -6 -5 -5 -5 -5 -5 -5 -5 -4 -4 -4 -4 -4 -4 -4 -3 -3 -3 -2 -2 -2 -1 -1 ------- Run | Yrd Mat Sub Rec Scr Fac Low Low Dat Pro Fac Was Fac Upp Upp Zhi Pro Fac Was Fac Upp Upp War Pro Res Tes Res Qua Frg Acc Com Maximum Alert Level 5 | . . . 1 . 2 . . . . . . 1 . . . . . . 3 . . . . . . . . 5 5 5 Low Security (%) 50 | 100 100 . 35 . 24 . . . . 100 100 88 . . . . 100 100 40 . . . . 100 100 100 100 12 . . Level 1 11 | . . . 64 . 54 . . . . . . 11 . . . . . . 15 . . . . . . . . 8 . . Level 2 7 | . . . . . 20 . . . . . . . . . . . . . 16 . . . . . . . . 15 . . Level 3 8 | . . . . . . . . . . . . . . . . . . . 27 . . . . . . . . 19 . . Level 4 9 | . . . . . . . . . . . . . . . . . . . . . . . . . . . . 24 43 26 Level 5 9 | . . . . . . . . . . . . . . . . . . . . . . . . . . . . 18 56 48 High Security 1 | . . . . . . . . . . . . . . . . . . . . . . . . . . . . . . 24 Max Security . | . . . . . . . . . . . . . . . . . . . . . . . . . . . . . . . Peak Influence 2451 | 5 148 . 258 . 530 . . . . 83 16 257 . . . . 187 . 914 . . . . 95 77 121 153 2451 1773 2278 Initial 1459 | . . . 147 . . . . . . . 16 . . . . . . . . . . . . . 53 . 15 63 1459 1169 Average 518 | 1 59 . 203 . 263 . . . . 19 8 61 . . . . 86 . 393 . . . . 25 31 54 86 1017 1621 1746 Influence Increases 12875 | 15 323 405 270 . 1102 . 75 . 5 470 . 622 . 150 15 . 418 . 1549 150 . 114 . 399 173 367 337 3417 509 1990 Destroy 0b10 Robot/C 3040 | . 160 200 . . 160 . . . . . . . . . . . . . 220 . . 60 . . . 40 . 1480 40 680 Destroy 0b10 Robot/NC 525 | 15 40 . 5 . 65 . . . 5 15 . 35 . . 15 . 5 . 10 . . . . 35 45 30 30 130 15 30 Destroy Leader 524 | . 38 10 . . 42 . . . . 2 . 2 . . . . 2 . 52 . . . . 10 6 12 2 214 10 122 Allied During Kill 193 | . . . . . 4 . . . . . . . . . . . . . 54 . . 24 . . . . . 109 . 2 Trap Triggered on 0b10 50 | . . . . . . . . . . . . . . . . . . . . . . . . 20 . . . 30 . . Successful Hack 954 | . 51 . 23 . 47 . . . . 108 . 202 . . . . 18 . 71 . . . . 73 18 93 77 84 42 47 Select Force Hacks 330 | . 30 . 240 . . . . . . 60 . . . . . . . . . . . . . . . . . . . . Disable Machine 480 | . . . . . 60 . . . . . . . . . . . . . . . . . . . 60 . 90 210 . 60 Anti-Garrison Action 350 | . . . . . . . . . . . . . . . . . . . 200 . . . . . . . . 150 . . Destroy Structure 1404 | . 4 . 2 . 139 . . . . 60 . 98 . . . . 48 . 42 . . . . 66 14 102 48 575 42 164 Partial Spotted 720 | . . . . . 90 . . . . . . 60 . . . . 30 . 105 . . . . 120 30 45 15 105 15 105 Lose Combat Pursuer 3405 | . . 195 . . 495 . 75 . . 225 . 225 . 150 . . 315 . 795 150 . 30 . 75 . 45 75 330 45 180 Active Sensor Use 900 | . . . . . . . . . . . . . . . . . . . . . . . . . . . . . 300 600 Influence Decreases 10882 | 15 317 103 455 123 648 199 129 201 5 424 46 371 154 157 105 . 418 . 904 280 149 478 2 304 268 338 254 1097 1113 1825 Entered New Map 3384 | . . 4 161 123 . 169 49 201 . . 30 . 94 19 90 . . . . 240 99 366 2 . 42 . 14 49 973 659 Time Decay 4852 | 15 307 89 294 . 438 30 70 . 5 239 16 341 60 128 15 . 218 . 384 40 50 38 . 247 206 258 230 758 130 246 Search Patrol Dispatched 450 | . . . . . 150 . . . . . . . . . . . . . 300 . . . . . . . . . . . Lost Part 581 | . 10 10 . . 30 . 10 . . 37 . 10 . 10 . . 54 . 20 . . 20 . 30 . 20 . 100 . 220 Lost Ally 1174 | . . . . . 30 . . . . . . 20 . . . . 10 . 50 . . 54 . 20 20 60 10 190 10 700 Purge Threat 441 | . . . . . . . . . . 148 . . . . . . 136 . 150 . . . . 7 . . . . . . Squads Dispatched 142 | . 1 . . . 16 . . . . 17 . 13 . 1 . . 6 . 14 . . . . 11 3 9 7 12 9 23 Investigation 82 | . 1 . . . 9 . . . . 15 . 10 . 1 . . 5 . 7 . . . . 6 . 3 4 6 5 10 Extermination 28 | . . . . . 5 . . . . 2 . 2 . . . . 1 . 2 . . . . 3 2 4 2 1 1 3 Reinforcement 18 | . . . . . 2 . . . . . . 1 . . . . . . 5 . . . . 2 1 2 1 3 . 1 Assault 14 | . . . . . . . . . . . . . . . . . . . . . . . . . . . . 2 3 9 Garrison . | . . . . . . . . . . . . . . . . . . . . . . . . . . . . . . . Intercept . | . . . . . . . . . . . . . . . . . . . . . . . . . . . . . . . Searches Triggered 3 | . . . . . 1 . . . . . . . . . . . . . 2 . . . . . . . . . . . Data Miner Redirects 3 | . . . . . . . . . . . . . . . . . 2 . . . . . . . . . . 1 . . Construction Impeded 2 | . . . . . 1 . . . . . . . . . . . . . . . . . . . . 1 . . . . Haulers Reinforced 1 | . . . . . . . . . . . . . . . . . . . 1 . . . . . . . . . . . Active Scanning Responses 9 | . . . . . . . . . . . . . . . . . . . . . . . . . . . . . 3 6 Cargo Convoy Interrupts . | . . . . . . . . . . . . . . . . . . . . . . . . . . . . . . . Stealth | -11 -10 -10 -8 -8 -6 -6 -6 -6 -5 -5 -5 -5 -5 -5 -5 -4 -4 -4 -4 -4 -4 -4 -3 -3 -3 -2 -2 -2 -1 -1 --------- Run | Yrd Mat Sub Rec Scr Fac Low Low Dat Pro Fac Was Fac Upp Upp Zhi Pro Fac Was Fac Upp Upp War Pro Res Tes Res Qua Frg Acc Com Distress Signals 43 | . 1 . . . 2 . . . . 2 . 4 . . . . 3 . 8 . . . . 3 . 2 1 13 1 3 Communications Jammed . | . . . . . . . . . . . . . . . . . . . . . . . . . . . . . . . Distress Signals . | . . . . . . . . . . . . . . . . . . . . . . . . . . . . . . . Times Spotted 619 | . 14 31 . . 49 . 5 . . 27 4 31 . 17 . . 35 5 55 6 2 39 . 41 9 26 18 138 4 63 Peak Tracking Total 15 | . 6 5 . . 8 . 5 . . 11 4 8 . 7 . . 9 5 13 12 2 12 . 8 3 7 5 11 4 15 Tactical Retreats 118 | . . 4 . . 17 . 2 . . 5 . 5 . 3 . . 11 . 13 2 . 1 . 9 2 8 4 23 1 8 Traps | -11 -10 -10 -8 -8 -6 -6 -6 -6 -5 -5 -5 -5 -5 -5 -5 -4 -4 -4 -4 -4 -4 -4 -3 -3 -3 -2 -2 -2 -1 -1 ------- Run | Yrd Mat Sub Rec Scr Fac Low Low Dat Pro Fac Was Fac Upp Upp Zhi Pro Fac Was Fac Upp Upp War Pro Res Tes Res Qua Frg Acc Com Traps Triggered 35 | . 2 1 . . 2 . . . . 1 . . . . . . 5 . . . . . . 2 1 2 2 16 . 1 Indirectly . | . . . . . . . . . . . . . . . . . . . . . . . . . . . . . . . Trap Hack Attempts 11 | . . . . . . . . . . 11 . . . . . . . . . . . . . . . . . . . . Triggered 1 | . . . . . . . . . . 1 . . . . . . . . . . . . . . . . . . . . Disarmed 2 | . . . . . . . . . . . . . . . . . . . . . . . . 2 . . . . . . Reprogrammed 12 | . . . . . . . . . . . . . . . . . . . . . . . . 6 . . . 6 . . Reused 5 | . . . . . . . . . . . . . . . . . . . . . . . . 2 . . . 3 . . Traps Extracted . | . . . . . . . . . . . . . . . . . . . . . . . . . . . . . . . Installed . | . . . . . . . . . . . . . . . . . . . . . . . . . . . . . . . Triggered 5 | . . . . . . . . . . . . . . . . . . . . . . . . 2 . . . 3 . . Most Traps Carried 2 | . . . . . . . . . . . . . . 2 2 2 2 . . . . . . . . . . . . . Machines | -11 -10 -10 -8 -8 -6 -6 -6 -6 -5 -5 -5 -5 -5 -5 -5 -4 -4 -4 -4 -4 -4 -4 -3 -3 -3 -2 -2 -2 -1 -1 ---------- Run | Yrd Mat Sub Rec Scr Fac Low Low Dat Pro Fac Was Fac Upp Upp Zhi Pro Fac Was Fac Upp Upp War Pro Res Tes Res Qua Frg Acc Com Machines Disabled 41 | . . 3 . . 4 . . . . . . . . 1 . . . . . . . . . . 4 . 6 19 . 4 Max in Single Turn 2 | . . 1 . . 1 . . . . . . . . 1 . . . . . . . . . . 1 . 1 2 . 1 Garrison Access 15 | . . . . . . . . . . 3 . 3 . . . . 2 . 2 . . . . 1 1 1 1 1 . . Machines Repaired . | . . . . . . . . . . . . . . . . . . . . . . . . . . . . . . . Machines Dismantled . | . . . . . . . . . . . . . . . . . . . . . . . . . . . . . . . Machines Sabotaged . | . . . . . . . . . . . . . . . . . . . . . . . . . . . . . . . Overloaded Fab Kills . | . . . . . . . . . . . . . . . . . . . . . . . . . . . . . . . Hacking | -11 -10 -10 -8 -8 -6 -6 -6 -6 -5 -5 -5 -5 -5 -5 -5 -4 -4 -4 -4 -4 -4 -4 -3 -3 -3 -2 -2 -2 -1 -1 --------- Run | Yrd Mat Sub Rec Scr Fac Low Low Dat Pro Fac Was Fac Upp Upp Zhi Pro Fac Was Fac Upp Upp War Pro Res Tes Res Qua Frg Acc Com Machines Accessed 225 | . 9 4 14 1 19 . . 4 . 29 . 24 1 1 4 . 14 . 14 1 . 3 . 17 10 10 13 15 6 12 Terminals 118 | . 8 . 6 . 8 . . . . 11 . 10 . 1 . . 7 . 5 . . . . 12 8 8 9 10 4 11 Fabricators 11 | . . . . . 1 . . . . 2 . 2 . . . . 1 . 3 . . . . . 1 . . . 1 . Repair Stations 11 | . . . . . 1 . . . . 2 . 2 . . . . 2 . 1 . . . . . . . . 1 1 1 Recycling Units 42 | . 1 . 8 . 8 . . . . 7 . 6 . . . . 2 . 3 . . . . 4 . . . 3 . . Scanalyzers 10 | . . . . . 1 . . . . 4 . 1 . . . . . . . . . . . . . . 3 1 . . Garrison Access 15 | . . . . . . . . . . 3 . 3 . . . . 2 . 2 . . . . 1 1 2 1 . . . Total Hacks 677 | . 28 8 32 4 45 . . 29 . 103 . 87 1 6 17 . 38 . 46 1 . 4 . 66 24 25 37 39 12 25 Successful 461 | . 10 8 21 4 22 . . 29 . 71 . 56 1 6 17 . 28 . 33 1 . 4 . 56 20 19 23 23 4 5 Failed 213 | . 18 . 11 . 23 . . . . 31 . 30 . . . . 10 . 13 . . . . 9 4 6 14 16 8 20 Catastrophic 29 | . 1 . 1 . 3 . . . . 4 . 4 . . . . 2 . 1 . . . . 1 . 1 2 1 3 5 Database Lockouts 3 | . . . . . . . . . . 1 . 1 . . . . . . . . . . . 1 . . . . . . Manual 424 | . 28 . 32 . 36 . . . . 61 . 55 . . . . 23 . 33 . . 1 . 41 15 22 15 32 7 23 Terminals 434 | . 27 . 22 . 29 . . . . 53 . 61 . 6 . . 29 . 24 . . . . 60 20 22 24 28 6 23 Fabricators 30 | . . . . . 3 . . . . 4 . 4 . . . . 1 . 12 . . . . . 3 . . . 3 . Repair Stations 22 | . . . . . 1 . . . . 2 . 6 . . . . 2 . 3 . . . . . . . . 3 3 2 Recycling Units 54 | . 1 . 10 . 9 . . . . 10 . 8 . . . . 3 . 4 . . . . 4 . . . 5 . . Scanalyzers 50 | . . . . . 3 . . . . 30 . 3 . . . . . . . . . . . . . . 11 3 . . Garrison Access 23 | . . . . . . . . . . 4 . 5 . . . . 3 . 3 . . . . 2 1 3 2 . . . Terminal Hacks 165 | . 2 8 3 4 1 . . 29 . 14 . 17 1 6 17 . 6 . 3 1 . 4 . 28 6 4 3 5 2 1 Record 34 | . . 5 . 4 . . . 11 . . . . . 6 5 . . . . . . 2 . . . . . 1 . . Part Schematic 30 | . . . . . . . . 9 . 3 . 2 . . 4 . 1 . . . . . . 6 3 1 . 1 . . Robot Schematic 7 | . . . . . . . . 6 . . . 1 . . . . . . . . . . . . . . . . . . Robot Analysis 9 | . 1 . . . . . . . . . . 1 . . 4 . . . . . . . . 2 . . 1 . . . Prototype ID Bank 12 | . . . . . . . . 3 . 1 . 3 . . 4 . . . . . . . . 1 . . . . . . Open Door 7 | . . 1 . . . . . . . . . . 1 . . . . . . 1 . 2 . . 1 1 . . . . Branch Access Points 6 | . . . . . . . . . . 1 . 1 . . . . 1 . . . . . . 1 . 1 . . 1 . Machine Index 1 | . . . . . . . . . . . . . . . . . . . . . . . . 1 . . . . . . Terminal Index 5 | . . . . . . . . . . 1 . . . . . . 1 . . . . . . 1 1 . . 1 . . Fabricator Index 1 | . . . . . . . . . . . . 1 . . . . . . . . . . . . . . . . . . Scanalyzer Index 3 | . . . . . . . . . . 1 . 2 . . . . . . . . . . . . . . . . . . Alert Level 1 | . . . . . . . . . . . . 1 . . . . . . . . . . . . . . . . . . Unreport Threat 8 | . . . . . . . . . . 3 . . . . . . 2 . 1 . . . . 2 . . . . . . Locate Traps 5 | . 1 . . . . . . . . . . 1 . . . . . . . . . . . 2 . . . 1 . . Disarm Traps 1 | . . . . . . . . . . . . . . . . . . . . . . . . 1 . . . . . . Reprogram Traps 2 | . . . . . . . . . . . . . . . . . . . . . . . . 1 . . . 1 . . Recall Investigation 4 | . . . . . . . . . . . . . . . . . . . . . . . . 4 . . . . . . Recall Extermination 8 | . . . . . . . . . . 1 . 1 . . . . . . . . . . . 4 . . 2 . . . Recall Reinforcements 2 | . . . . . . . . . . . . . . . . . . . 2 . . . . . . . . . . . Hauler Manifests 1 | . . . . . . . . . . . . . . . . . . . . . . . . 1 . . . . . . Registered Components 1 | . . . . . . . . . . . . 1 . . . . . . . . . . . . . . . . . . Registered Prototypes 2 | . . . . . . . . . . . . . . . . . 1 . . . . . . 1 . . . . . . Zone Layout 12 | . . . 3 . 1 . . . . 3 . 2 . . . . . . . . . . . . 1 1 . . 1 . Proto ID Catalog 1 | . . 1 . . . . . . . . . . . . . . . . . . . . . . . . . . . . Disengage Seal 1 | . . . . . . . . . . . . . . . . . . . . . . . . . . . . . . 1 Release Object 1 | . . 1 . . . . . . . . . . . . . . . . . . . . . . . . . . . . Fabricator Hacks 19 | . . . . . 2 . . . . 2 . 3 . . . . 1 . 8 . . . . . 2 . . . 1 . Network Status 3 | . . . . . 1 . . . . . . . . . . . 1 . . . . . . . 1 . . . . . Load Schematic 9 | . . . . . . . . . . 2 . 2 . . . . . . 4 . . . . . . . . . 1 . Build 7 | . . . . . 1 . . . . . . 1 . . . . . . 4 . . . . . 1 . . . . . Repair Station Hacks 8 | . . . . . . . . . . . . 4 . . . . . . 2 . . . . . . . . 2 . . Scan Component 4 | . . . . . . . . . . . . 2 . . . . . . 1 . . . . . . . . 1 . . Repair 4 | . . . . . . . . . . . . 2 . . . . . . 1 . . . . . . . . 1 . . Recycling Unit Hacks . | . . . . . . . . . . . . . . . . . . . . . . . . . . . . . . . Scanalyzer 37 | . . . . . 2 . . . . 21 . 2 . . . . . . . . . . . . . . 10 2 . . Insert Component 14 | . . . . . 1 . . . . 5 . 1 . . . . . . . . . . . . . . 6 1 . . Analyze 23 | . . . . . 1 . . . . 16 . 1 . . . . . . . . . . . . . . 4 1 . . Garrison Access Hacks 14 | . . . . . . . . . . 3 . 3 . . . . 2 . 1 . . . . 1 1 2 1 . . . Unlock Access 1 | . . . . . . . . . . . . . . . . . . . . . . . . . . 1 . . . . Seal Access 13 | . . . . . . . . . . 3 . 3 . . . . 2 . 1 . . . . 1 1 1 1 . . . Unauthorized Hacks 218 | . 8 . 18 . 17 . . . . 31 . 27 . . . . 19 . 19 . . . . 27 11 13 9 14 1 4 Terminals 161 | . 7 . 10 . 9 . . . . 19 . 19 . . . . 15 . 12 . . . . 23 10 12 9 11 1 4 Track 15 | . . . 1 . . . . . . 3 . 2 . . . . 1 . . . . . . 3 1 . 2 2 . . Assimilate 20 | . . . . . . . . . . 1 . 2 . . . . 2 . 1 . . . . 5 2 3 . 3 . 1 Botnet 58 | . 2 . 4 . 3 . . . . 8 . 8 . . . . 6 . 4 . . . . 7 3 3 2 4 1 3 Disrupt 8 | . . . . . . . . . . 2 . 1 . . . . 1 . 2 . . . . 1 . . . 1 . . Operators 1 | . . . . . . . . . . . . . . . . . . . . . . . . 1 . . . . . . Skim 59 | . 5 . 5 . 6 . . . . 5 . 6 . . . . 5 . 5 . . . . 6 4 6 5 1 . . Fabricators 6 | . . . . . . . . . . 2 . 1 . . . . . . 2 . . . . . 1 . . . . . Prioritize 2 | . . . . . . . . . . . . . . . . . . . 1 . . . . . 1 . . . . . Recompile 4 | . . . . . . . . . . 2 . 1 . . . . . . 1 . . . . . . . . . . . Repair Stations 6 | . . . . . . . . . . 2 . 1 . . . . 2 . 1 . . . . . . . . . . . Mechanics 1 | . . . . . . . . . . . . 1 . . . . . . . . . . . . . . . . . . Patch 5 | . . . . . . . . . . 2 . . . . . . 2 . 1 . . . . . . . . . . . Recycling Units 41 | . 1 . 8 . 8 . . . . 6 . 6 . . . . 2 . 3 . . . . 4 . . . 3 . . Tunnel 9 | . 1 . 8 . . . . . . . . . . . . . . . . . . . . . . . . . . . Fedlink 30 | . . . . . 8 . . . . 6 . 6 . . . . 2 . 3 . . . . 4 . . . 1 . . Scraphulk 2 | . . . . . . . . . . . . . . . . . . . . . . . . . . . . 2 . . Scanalyzers 2 | . . . . . . . . . . 2 . . . . . . . . . . . . . . . . . . . . Extract 2 | . . . . . . . . . . 2 . . . . . . . . . . . . . . . . . . . . Garrison Access 2 | . . . . . . . . . . . . . . . . . . . 1 . . . . . . 1 . . . . Reprogram 1 | . . . . . . . . . . . . . . . . . . . . . . . . . . 1 . . . . Jam 1 | . . . . . . . . . . . . . . . . . . . 1 . . . . . . . . . . . Data Cores Recovered 8 | . . . . . 2 . . . . 2 . . . . . . . . . . . . . . 1 1 1 1 . . Used 2 | . . . . . 2 . . . . . . . . . . . . . . . . . . . . . . . . . Hacking Detections 142 | . 8 . 7 . 9 . . . . 15 . 13 . 1 . . 7 . 10 . . . . 13 8 8 13 12 6 12 Full Trace Events 22 | . . . . . 1 . . . . 2 . 3 . 1 . . . . 1 . . . . 1 . 2 4 1 2 4 Feedback Events 5 | . . . . . . . . . . . . . . . . . . . . . . . . . . 2 . 1 . 2 Corruption 3 | . . . . . . . . . . . . . . . . . . . . . . . . . . 1 . 1 . 1 Hackware Fried 2 | . . . . . . . . . . . . . . . . . . . . . . . . . . 1 . . . 1 Feedback Blocked 1 | . . . . . . . . . . . . 1 . . . . . . . . . . . . . . . . . . Robot Schematics Acquired 15 | . . . . . . . . 6 . . . 1 . . . . . . . . . . . . 3 . 4 1 . . Robots Built 3 | . . . . . . . . . . . . . . . . . . . 2 . . . . . 1 . . . . . Authchips . | . . . . . . . . . . . . . . . . . . . . . . . . . . . . . . . Time 155 | . . . . . . . . . . . . . . . . . . . 62 . . . . . 93 . . . . . Total Robot Build Rating 21 | . . . . . . . . . . . . . . . . . . . 14 . . . . . 7 . . . . . Part Schematics Acquired 121 | . . . . . 1 . . 9 . 15 . 3 . 1 5 1 7 1 14 1 2 7 5 9 14 4 10 12 . . Parts Built 7 | . . . . . 1 . . . . . . 2 . . . . . . 4 . . . . . . . . . . . Authchips 3 | . . . . . . . . . . . . 1 . . . . . . 2 . . . . . . . . . . . Time 285 | . . . . . 152 . . . . . . 35 . . . . . . 98 . . . . . . . . . . . Total Part Build Rating 39 | . . . . . 5 . . . . . . 12 . . . . . . 22 . . . . . . . . . . . Parts Repaired 4 | . . . . . . . . . . . . 2 . . . . . . 1 . . . . . . . . 1 . . Time 182 | . . . . . . . . . . . . 72 . . . . . . 56 . . . . . . . . 54 . . Parts Recycled . | . . . . . . . . . . . . . . . . . . . . . . . . . . . . . . . Recycled Matter . | . . . . . . . . . . . . . . . . . . . . . . . . . . . . . . . Retrieved Matter . | . . . . . . . . . . . . . . . . . . . . . . . . . . . . . . . Retrieved Components . | . . . . . . . . . . . . . . . . . . . . . . . . . . . . . . . Parts Scanalyzed 8 | . . . . . 1 . . . . 4 . 1 . . . . . . . . . . . . . . 1 1 . . Part Schematics Acquired 8 | . . . . . 1 . . . . 4 . 1 . . . . . . . . . . . . . . 1 1 . . Parts Damaged . | . . . . . . . . . . . . . . . . . . . . . . . . . . . . . . . Bothacking | -11 -10 -10 -8 -8 -6 -6 -6 -6 -5 -5 -5 -5 -5 -5 -5 -4 -4 -4 -4 -4 -4 -4 -3 -3 -3 -2 -2 -2 -1 -1 ------------ Run | Yrd Mat Sub Rec Scr Fac Low Low Dat Pro Fac Was Fac Upp Upp Zhi Pro Fac Was Fac Upp Upp War Pro Res Tes Res Qua Frg Acc Com Used RIF Installer . | . . . . . . . . . . . . . . . . . . . . . . . . . . . . . . . Robots Hacked 37 | . . . . . 1 . . . . 1 . . . . . . 1 . . . . . . 1 11 1 6 14 1 . Non-combat 2 | . . . . . . . . . . 1 . . . . . . . . . . . . . . . . . 1 . . Combat . | . . . . . . . . . . . . . . . . . . . . . . . . . . . . . . . Robot Hacks Applied 2 | . . . . . . . . . . 1 . . . . . . . . . . . . . . . . . 1 . . parse_system 1 | . . . . . . . . . . . . . . . . . . . . . . . . . . . . 1 . . find_chute 1 | . . . . . . . . . . 1 . . . . . . . . . . . . . . . . . . . . Manual 36 | . . . . . 1 . . . . . . . . . . . 1 . . . . . . 1 11 1 6 14 1 . Relay Couplers Released 1 | . . . . . . . . . . . . . . . . . . . . . . . . . . . . 1 . . Machine Destruction 1 | . . . . . . . . . . . . . . . . . . . . . . . . . . . . 1 . . Fabnet Peak Effective % . | . . . . . . . . . . . . . . . . . . . . . . . . . . . . . . . Robots Rewired 5 | . . . . . . . . . . . . . . . . . . . . . . 5 . . . . . . . . Allies Hacked 2 | . . . . . . . . . . . . . . . . . . . . . . . . 1 . . 1 . . . Hacks Repelled . | . . . . . . . . . . . . . . . . . . . . . . . . . . . . . . . Allies | -11 -10 -10 -8 -8 -6 -6 -6 -6 -5 -5 -5 -5 -5 -5 -5 -4 -4 -4 -4 -4 -4 -4 -3 -3 -3 -2 -2 -2 -1 -1 -------- Run | Yrd Mat Sub Rec Scr Fac Low Low Dat Pro Fac Was Fac Upp Upp Zhi Pro Fac Was Fac Upp Upp War Pro Res Tes Res Qua Frg Acc Com Total Allies 80 | . . . . 1 1 . . . . . 1 2 . . . . 2 1 3 . . 5 . 3 3 3 1 16 1 37 Largest Group 15 | . . . . 1 2 . . . . . 1 1 . . . . 1 1 2 . . 5 . 1 2 3 1 4 1 15 Highest-Rated Group 431 | . . . . 62 73 . . . . . 31 26 . . . . 14 46 136 . . 270 . 40 62 197 36 349 36 431 Highest-Rated Ally 234 | . . . . 62 62 . . . . . 31 26 . . . . 14 46 68 . . 68 . 40 36 148 36 148 36 234 Total Orders 13 | . . . . 1 . . . . . . . . . . . . 3 . . . . 4 . . 1 2 . 2 . . STAY 5 | . . . . 1 . . . . . . . . . . . . 2 . . . . 1 . . . . . 1 . . FOLLOW 4 | . . . . . . . . . . . . . . . . . 1 . . . . 2 . . . . . 1 . . GUARD 1 | . . . . . . . . . . . . . . . . . . . . . . 1 . . . . . . . . AID 1 | . . . . . . . . . . . . . . . . . . . . . . . . . 1 . . . . . EXPLORE 2 | . . . . . . . . . . . . . . . . . . . . . . . . . . 2 . . . . Ally Attacks 354 | . . . . . 29 . . . . . 1 . . . . . . . 18 . . 35 . . . 38 . 79 . 154 Total Damage 14196 | . . . . . 2701 . . . . . . . . . . . . . 1180 . . 798 . . . 1144 . 3615 . 4758 Kills 62 | . . . . . 17 . . . . . . . . . . . . . 9 . . 3 . . . 6 . 10 . 17 Allies Corrupted 5 | . . . . . . . . . . . . . . . . . . . . . . 2 . . 1 . . . . 2 Allies Melted 1 | . . . . . . . . . . . . . . . . . . . . . . . . . . . . 1 . . Intel | -11 -10 -10 -8 -8 -6 -6 -6 -6 -5 -5 -5 -5 -5 -5 -5 -4 -4 -4 -4 -4 -4 -4 -3 -3 -3 -2 -2 -2 -1 -1 ------- Run | Yrd Mat Sub Rec Scr Fac Low Low Dat Pro Fac Was Fac Upp Upp Zhi Pro Fac Was Fac Upp Upp War Pro Res Tes Res Qua Frg Acc Com Active Infowar (turns) 15924 | 9 794 124 . . 1076 75 143 28 482 829 51 1000 130 379 92 121 485 2 1083 89 112 577 442 821 526 731 484 4097 260 882 Optics 3905 | . . . . . . . . . . . . . . . . . . . . . . . . . . . . 2763 260 882 Sensors 10163 | . . . . . 812 75 143 28 482 829 51 1000 130 361 92 121 485 . 1024 89 112 448 442 817 362 729 484 1047 . . A.S.S. 3966 | . . . . . . . . . . . . . . . . . . . . . . . . . . . . 3050 260 656 Structural 7032 | . . . . . 231 75 143 28 482 814 . 815 130 379 84 121 485 2 827 89 112 186 . 813 526 690 . . . . Seismic 1195 | 9 794 124 . . 266 . . . . . . . . . . . . . . . . . . 2 . . . . . . Cloaking 2807 | . . . . . . . . . . . . . . . . . . . . . . . . . . . . 1896 260 651 Jamming 1 | . . . . . . . . . . . . . . . . . . . . . . . . . . . . . . 1 ECM 1502 | . . . . . . . . . . . . . . . . . . . . . . . . 251 222 416 143 376 2 92 Robot Analysis Total 9 | . 1 . . . . . . . . . . 1 . . 4 . . . . . . . . 2 . . 1 . . . Derelict Logs Recovered 11 | . . 2 . 1 . . 2 . . . . . 1 2 . 1 . . . 1 1 . . . . . . . . . Drone Launches 4 | . . . . . . . . . . . . . . . . . . . . . . . . . . 4 . . . . Drone Recoveries 2 | . . . . . . . . . . . . . . . . . . . . . . . . . . 2 . . . . Exploration | -11 -10 -10 -8 -8 -6 -6 -6 -6 -5 -5 -5 -5 -5 -5 -5 -4 -4 -4 -4 -4 -4 -4 -3 -3 -3 -2 -2 -2 -1 -1 ------------- Run | Yrd Mat Sub Rec Scr Fac Low Low Dat Pro Fac Was Fac Upp Upp Zhi Pro Fac Was Fac Upp Upp War Pro Res Tes Res Qua Frg Acc Com Turns Passed 22778 | 116 794 3813 648 1960 1113 75 143 28 482 829 51 1000 130 379 92 121 495 39 1118 89 112 581 442 828 529 731 484 4414 260 882 Spaces Moved 33856 | 69 583 2118 293 1266 2285 190 341 79 269 1777 77 1851 401 370 154 239 1079 72 1512 284 308 833 349 2288 975 1381 1306 8341 714 2052 Core 29 | 3 . . . . . . . . . . . . . . . . . . 26 . . . . . . . . . . . Treads 2864 | . 27 1944 . 887 6 . . . . . . . . . . . . . . . . . . . . . . . . . Legs . | . . . . . . . . . . . . . . . . . . . . . . . . . . . . . . . Wheels 1468 | 66 556 174 293 379 . . . . . . . . . . . . . . . . . . . . . . . . . . Hover . | . . . . . . . . . . . . . . . . . . . . . . . . . . . . . . . Flight 29495 | . . . . . 2279 190 341 79 269 1777 77 1851 401 370 154 239 1079 72 1486 284 308 833 349 2288 975 1381 1306 8341 714 2052 Fastest Speed 11 | 50 100 115 120 120 32 35 35 35 30 28 37 28 28 30 31 31 28 40 19 25 25 20 25 20 20 20 12 11 22 12 Average Speed 40 | 97 114 156 120 150 34 35 35 35 32 32 37 33 30 30 31 31 29 40 28 25 25 24 25 20 22 21 16 20 22 20 Slowest Speed 240 | 100 160 240 120 240 160 35 35 35 35 37 37 42 31 33 31 31 40 40 100 25 25 25 25 25 25 25 23 99 22 22 Overloaded Moves 11 | . . . . . . . . . . . . . . . . . . . . . . . . . . . 11 . . . Propulsion Burnouts . | . . . . . . . . . . . . . . . . . . . . . . . . . . . . . . . Robots Hopped 163 | . . . . . 23 . . . . 11 2 4 . . . . 9 2 5 . . 1 . 17 8 13 25 28 . 15 Potential Cave-ins 47 | . . . . . . . . . . . . . . . . . . . . . . . . . . . . 47 . . Cave-ins Triggered 1 | . . . . . . . . . . . . . . . . . . . . . . . . . . . . 1 . . Teleports 1 | . . . . . . . . . . . . . . . . . . . . . . . . . . . . 1 . . Exploration Rate (%) 60 | 5 94 95 66 86 47 46 51 69 49 51 72 51 59 61 60 52 37 69 37 53 51 92 55 65 93 46 76 87 29 68 Regions Visited 30 Branch Regions 19 Pre-discovered Areas 26 | . 1 2 9 . 3 . . 1 . 1 . 1 . 1 3 1 1 . 1 . 1 . . . . . . . . . Known Exits Taken 24 | . 1 1 . 1 1 1 1 1 1 . . 1 1 1 1 1 . . 1 1 1 1 1 1 1 1 1 1 1 . Unknown Exits Taken 2 | 1 . . 1 . . . . . . . . . . . . . . . . . . . . . . . . . . . Scrap Searched 27 | . . 4 . 11 . 1 2 . 3 . . . 4 . . . . . . 1 . . 1 . . . . . . . Spaces Dug 408 | . 1 2 2 . 49 1 2 . . 30 . 49 . 4 . 1 24 . 22 2 3 . 2 33 7 25 13 102 14 20 Terrain Destroyed 554 | 6 3 46 2 . 49 1 2 . . 30 . 49 . 4 . 1 24 . 22 2 3 . 2 33 7 27 14 154 14 59 Melee 326 | . 1 1 2 . 49 1 2 . . 30 . 49 . 4 . 1 24 . 22 2 3 . 2 32 7 25 13 22 14 20 Projectile 129 | . . 2 . . . . . . . . . . . . . . . . . . . . . 1 . 2 1 93 . 30 AOE 51 | 6 2 43 . . . . . . . . . . . . . . . . . . . . . . . . . . . . Terrain Rammed . | . . . . . . . . . . . . . . . . . . . . . . . . . . . . . . . Walls Destroyed . | . . . . . . . . . . . . . . . . . . . . . . . . . . . . . . . Machines Disabled . | . . . . . . . . . . . . . . . . . . . . . . . . . . . . . . . Actions | -11 -10 -10 -8 -8 -6 -6 -6 -6 -5 -5 -5 -5 -5 -5 -5 -4 -4 -4 -4 -4 -4 -4 -3 -3 -3 -2 -2 -2 -1 -1 --------- Run | Yrd Mat Sub Rec Scr Fac Low Low Dat Pro Fac Was Fac Upp Upp Zhi Pro Fac Was Fac Upp Upp War Pro Res Tes Res Qua Frg Acc Com Total 41486 | 90 652 2427 585 1324 2505 195 357 78 658 1972 96 2139 410 627 179 283 1215 79 2132 299 339 1206 700 2555 1240 1761 1504 10709 789 2381 Wait 5547 | . 15 108 286 44 122 . 13 . 383 138 20 203 5 245 . 44 94 7 542 12 27 325 349 155 173 329 142 1569 38 159 Move 33523 | 68 582 2117 292 1265 2241 189 340 78 268 1755 73 1842 400 369 153 238 1062 68 1501 283 307 830 348 2255 958 1356 1259 8291 713 2022 Hop 141 | . . . . . 20 . . . . 11 1 4 . . . . 8 1 5 . . 1 . 15 8 11 21 20 . 15 Pick Up 201 | 3 9 11 1 12 5 . . . . 5 . 7 3 2 3 . 5 . 4 1 1 4 1 1 5 4 9 96 4 5 Fast Attach 191 | 7 1 5 1 1 17 3 . . 3 4 1 7 . . 5 . 6 2 21 . . 10 . 14 13 8 12 39 . 11 Attach 107 | . 1 10 . . 6 . . . . 3 . 3 1 4 . . 2 . 1 . . 1 . 6 5 2 4 30 1 27 Detach 53 | . . . . . . . . . . 1 . 1 . 1 . . 1 . 2 . . . . 5 2 . . 20 . 20 Swap 138 | . 3 11 . . 1 . . . . 2 . 8 . . 1 . 2 . 9 . . 6 . 4 3 5 3 64 5 11 Drop 279 | . 4 18 1 2 21 2 . . 2 6 1 5 1 . 5 . 9 1 4 1 1 15 . 15 18 8 15 115 2 7 Fire 483 | 12 29 118 . . 2 . . . . . . . . 2 . . 1 . . . . . . 3 20 3 11 224 9 49 Melee 620 | . 8 4 4 . 70 1 4 . 2 36 . 59 . 4 12 1 25 . 43 2 3 . 2 82 35 35 28 88 17 55 Ram . | . . . . . . . . . . . . . . . . . . . . . . . . . . . . . . . Kick . | . . . . . . . . . . . . . . . . . . . . . . . . . . . . . . . Crush . | . . . . . . . . . . . . . . . . . . . . . . . . . . . . . . . Escape Stasis 73 | . . . . . . . . . . . . . . . . . . . . . . . . . . . . 73 . . Rewire 14 | . . . . . . . . . . . . . . . . . . . . . . 14 . . . . . . . . Trap 11 | . . . . . . . . . . 11 . . . . . . . . . . . . . . . . . . . . Miscellaneous 105 | . . 25 . . . . . . . . . . . . . . . . . . . . . . . . . 80 . . Route ------- -11/Scrapyard -10/Materials (discovered 6 exits: *Mat x3 / *Min x2 / *Sub) -10/Subcaves (discovered 3 exits: *Mat x2 / *Rec) -8/Recycling (discovered 2 exits: Fac / *Scr) -8/Scraptown (discovered 2 exits: *Fac x2) -6/Factory (discovered 6 exits: Fac x4 / *Low x2) -6/Lower Caves -6/Lower Caves -6/Data Miner -5/Proximity Caves -5/Factory (discovered 4 exits: *Fac x2 / *Upp x2) -5/Waste -5/Factory (discovered 5 exits: *Fac x3 / *Upp x2) -5/Upper Caves -5/Upper Caves (discovered 2 exits: *Fac / *Zhi) -5/Zhirov -4/Proximity Caves -4/Factory (discovered 7 exits: *Res x2 / *Upp x2 / Ext x2 / Arm) -4/Waste -4/Factory (discovered 5 exits: *Upp x2 / Ext x2 / Arm) -4/Upper Caves -4/Upper Caves (discovered 2 exits: Res / *War) -4/Warlord -3/Proximity Caves -3/Research (discovered 5 exits: *Res x3 / *Tes x2) -3/Testing -2/Research (discovered 6 exits: *Acc x3 / *Qua x2 / Gar) -2/Quarantine (discovered 3 exits: Acc / *Sec / *Frg) -2/Protoforge -1/Access -1/Command To Fleet Rendezvous History --------- Turn | Location | Event 15 | -11/Scrapyard | Discovered new exit (range 15) 117 | -11/Scrapyard | Entered Materials 300 | -10/Materials | Build established: Mutant 317 | -10/Materials | Discovered new exit (range 7) 475 | -10/Materials | Discovered new exit (range 6) 524 | -10/Materials | Identified exit to Mines 571 | -10/Materials | Discovered new exit (range 10) 598 | -10/Materials | Identified exit to Subcaves 598 | -10/Materials | Identified exit to Materials 598 | -10/Materials | Learned location of 1 exit from Materials 664 | -10/Materials | Learned Storage garrison access intel 766 | -10/Materials | Learned 2 Mines zone layouts 821 | -10/Materials | Learned location of 2 exits from Mines 887 | -10/Materials | Learned location of 2 exits from Subcaves 911 | -10/Materials | Entered Subcaves 912 | -10/Subcaves | Identified exit to Recycling 912 | -10/Subcaves | Identified exit to Materials 1057 | -10/Subcaves | Core integrity fell below 50% 1095 | -10/Subcaves | Lost 6 parts (1p2n1u2w) 1306 | -10/Subcaves | A swath of the cavern ceiling suddenly collapsed 1554 | -10/Subcaves | Visited Clippyterm 1559 | -10/Subcaves | Learned location of Section 7 (-2) 1843 | -10/Subcaves | A swath of the cavern ceiling suddenly collapsed 1944 | -10/Subcaves | Shifting Twisted Machinery released Sub. Power Source 1952 | -10/Subcaves | Shifting Twisted Machinery released Shrapnel Trap 2001 | -10/Subcaves | A Subdweller sparked back to life 2033 | -10/Subcaves | Core integrity fell below 20% 2054 | -10/Subcaves | Found Prototype Device 2174 | -10/Subcaves | Identified Power Bank 2175 | -10/Subcaves | Attached Power Bank, gained temporary slots: Power x3 2367 | -10/Subcaves | Build established: Subdweller-Mutant 2500 | -10/Subcaves | Shifting Twisted Machinery released Slug Cannon 2511 | -10/Subcaves | Shifting Twisted Machinery released Sub. Laser 3147 | -10/Subcaves | Discovered exit to Materials (range 11) 3599 | -10/Subcaves | Learned Materials trap positions 3624 | -10/Subcaves | Visited 4L-MR0's lab 3784 | -10/Subcaves | Ambushed by Subdweller buried in earth 4156 | -10/Subcaves | Build established: Mutant 4217 | -10/Subcaves | Shifting Twisted Machinery released Scrap Shield 4369 | -10/Subcaves | Learned location of Zion (-7) 4369 | -10/Subcaves | Met a Zionite searching for "candidates" 4579 | -10/Subcaves | Found SUBCON Basin 4724 | -10/Subcaves | Entered Recycling 5069 | -8/Recycling | Scanned before Scraplab entrance 5086 | -8/Recycling | Entered Scraplab 5113 | -8/Recycling | Discovered new exit (range 2) 5194 | -8/Recycling | Learned 4 Factory zone layouts 5228 | -8/Recycling | Identified exit to Factory 5254 | -8/Recycling | Learned Storage terminal intel 5294 | -8/Recycling | Learned location of 3 exits from Factory 5321 | -8/Recycling | Learned 8 Factory zone layouts 5372 | -8/Recycling | Entered Scraptown 5387 | -8/Scraptown | Heard Great Nut preacher, LISTEN AND RECITE! 5462 | -8/Scraptown | Scanned Subdweller tech in exchange for log data 5466 | -8/Scraptown | Learned location of 2 exits from Upper Caves 5527 | -8/Scraptown | Visited UFD Registry 5527 | -8/Scraptown | Registered with UFD as "Steelbrain" 5543 | -8/Scraptown | Visited TADAMA 5560 | -8/Scraptown | Visited Science Testing Area 5569 | -8/Scraptown | Visited The Evicted 5598 | -8/Scraptown | Visited Spacefarers 5654 | -8/Scraptown | Visited Bundlers 6366 | -8/Scraptown | Visited LU-1G1's Boring Crew 6424 | -8/Scraptown | Visited Abandonware Association 6441 | -8/Scraptown | Learned abandonware demo "REPAIR.EXE" 6441 | -8/Scraptown | Learned abandonware demo "KABOOM.EXE" 6481 | -8/Scraptown | Visited Research Penetration Think Tank 6676 | -8/Scraptown | Visited Junk Repository 6719 | -8/Scraptown | Visited DA-N13 Charitable Foundation 6735 | -8/Scraptown | Found DCF Scrap (31 items) 6763 | -8/Scraptown | Visited Scrap Suit Storage 6781 | -8/Scraptown | Visited Infowarlord's Domain 6792 | -8/Scraptown | Found Exp. Signal Interpreter 6825 | -8/Scraptown | Visited Derelict Rescue Squad 6836 | -8/Scraptown | Found DRS Beacon 6871 | -8/Scraptown | Visited Botcube Research 6879 | -8/Scraptown | Found Lrg. Botcube 6910 | -8/Scraptown | Visited Junk Repository 7024 | -8/Scraptown | Lrg. Botcube activated 7052 | -8/Scraptown | Lrg. Botcube completed mutation into treaded form, armed with 1 gun, 1 cannon, 1 launcher, 1 special weapon. 7241 | -8/Scraptown | Met Optimus 7241 | -8/Scraptown | Accepted into 0bPrime 7332 | -8/Scraptown | Entered Factory 7332 | -6/Factory | Accompanied by 1 ally 7332 | -6/Factory | Evolved 8 slots: Propulsion x3, Utility x5 7333 | -6/Factory | Identified exit to Factory 7334 | -6/Factory | Identified exit to Lower Caves 7388 | -6/Factory | Loaded intel: 8 recycling unit locations 7619 | -6/Factory | Learned location of Protoforge (-2) 7866 | -6/Factory | Fabricated Shock Maul? 7896 | -6/Factory | Learned location of 1 exit from Extension 7927 | -6/Factory | Spotted B-75 Beast 7948 | -6/Factory | Learned Extension trap positions 8057 | -6/Factory | Learned 2 Proximity Caves zone layouts 8073 | -6/Factory | Learned location of 1 exit from Proximity Caves 8095 | -6/Factory | Loaded intel: 68 trap records 8126 | -6/Factory | Learned location of Extension (-4) 8167 | -6/Factory | Learned Factory trap positions 8382 | -6/Factory | Search patrols dispatched 8445 | -6/Factory | Entered Lower Caves 8490 | -6/Lower Caves | Found DCF Scrap (13 items) 8514 | -6/Lower Caves | Discovered new exit (range 15) 8519 | -6/Lower Caves | Identified exit to Lower Caves 8520 | -6/Lower Caves | Entered another Lower Caves area 8522 | -6/Lower Caves | Attracted the attention of an 0b10 checkpoint 8564 | -6/Lower Caves | Learned Factory trap positions 8569 | -6/Lower Caves | Learned Factory security intel 8625 | -6/Lower Caves | Discovered new exit (range 15) 8629 | -6/Lower Caves | Identified exit to Data Miner 8663 | -6/Lower Caves | Entered Data Miner 8663 | -6/Data Miner | Discovered new exit (range 6) 8670 | -6/Data Miner | Met Data Miner 8677 | -6/Data Miner | Acquired the access code to Warlord's prototype stash 8683 | -6/Data Miner | Received God Mode back door access code from Data Miner 8690 | -6/Data Miner | Identified exit to Proximity Caves 8691 | -6/Data Miner | Entered Proximity Caves 8710 | -5/Proximity Caves | Encountered a Derelict sapper outpost 8783 | -5/Proximity Caves | Build established: Hacker-Scout 9034 | -5/Proximity Caves | Received a Behemoth hack from an annoying Tinkerer 9173 | -5/Proximity Caves | Entered Factory 9173 | -5/Factory | Evolved 2 slots: Propulsion x2 9174 | -5/Factory | Identified exit to Upper Caves 9175 | -5/Factory | Loaded intel: 120 trap records 9259 | -5/Factory | Loaded intel: 8 recycling unit locations 9565 | -5/Factory | Central database locked down 9589 | -5/Factory | Discovered new exit (range 12) 9599 | -5/Factory | Learned location of 1 exit from Research 9616 | -5/Factory | Discovered new exit (range 11) 9621 | -5/Factory | Identified exit to Factory 9674 | -5/Factory | Learned Armory security intel 9740 | -5/Factory | Learned location of 1 exit from Testing 9797 | -5/Factory | Learned Research garrison access intel 9843 | -5/Factory | Learned location of 1 exit from Research 9902 | -5/Factory | Learned Quarantine terminal intel 9937 | -5/Factory | Learned Quarantine garrison access intel 9984 | -5/Factory | Learned Testing emergency access door positions 10002 | -5/Factory | Spotted B-75 Beast 10002 | -5/Factory | Sucked down chute 10002 | -5/Factory | Entered Waste 10003 | -5/Waste | Met a frightened Derelict 10008 | -5/Waste | Spotted C-40 Crusher 10013 | -5/Waste | Spotted C-40 Crusher 10015 | -5/Waste | Spotted C-40 Crusher 10015 | -5/Waste | Spotted C-40 Crusher 10029 | -5/Waste | Discovered new exit (range 10) 10032 | -5/Waste | Identified exit to Factory 10053 | -5/Waste | Entered Factory 10055 | -5/Factory | Loaded intel: 104 trap records 10413 | -5/Factory | Repaired Lgt. Fission Core 10414 | -5/Factory | Fabricated Field Propulsion Drive? 10418 | -5/Factory | Repaired Broken Impulse Thruster Array? 10436 | -5/Factory | Loaded intel: 8 recycling unit locations 10511 | -5/Factory | Spotted B-75 Beast 10766 | -5/Factory | Learned Extension trap positions 10926 | -5/Factory | Central database locked down 10981 | -5/Factory | Learned location of Upper Caves (-4) 11032 | -5/Factory | Discovered exit to Factory (range 13) 11053 | -5/Factory | Entered Upper Caves 11054 | -5/Upper Caves | Identified exit to Upper Caves 11085 | -5/Upper Caves | Found DCF Scrap (12 items) 11138 | -5/Upper Caves | Learned Factory garrison access intel 11183 | -5/Upper Caves | Entered another Upper Caves area 11184 | -5/Upper Caves | Identified exit to Zhirov 11458 | -5/Upper Caves | Spotted B-75 Beast 11464 | -5/Upper Caves | Tech Extrapolator generated special schematic: Energy Deflector 11482 | -5/Upper Caves | Lost 3 parts (1n1u1w) 11548 | -5/Upper Caves | Learned Factory garrison access intel 11560 | -5/Upper Caves | Learned Factory stockpile data 11560 | -5/Upper Caves | Learned Armory emergency access door positions 11560 | -5/Upper Caves | Learned Extension trap positions 11560 | -5/Upper Caves | Learned 6 Proximity Caves zone layouts 11560 | -5/Upper Caves | Learned location of 1 exit from Research 11561 | -5/Upper Caves | Attracted the attention of an 0b10 base 11562 | -5/Upper Caves | Entered Zhirov 11562 | -5/Zhirov | Discovered new exit (range 3) 11563 | -5/Zhirov | Identified exit to Proximity Caves 11568 | -5/Zhirov | Met Zhirov 11575 | -5/Zhirov | Learned location of Testing (-3) 11575 | -5/Zhirov | Learned location of Command (-1) 11577 | -5/Zhirov | Zhirov requested help retrieving the SGEMP Prototype 11582 | -5/Zhirov | Found Alien Artifact 11582 | -5/Zhirov | Identified Integrated Dissipator 11582 | -5/Zhirov | Installed Integrated Dissipator, increased core heat dissipation (+20) 11589 | -5/Zhirov | Found Alien Artifact 11654 | -5/Zhirov | Entered Proximity Caves 11773 | -4/Proximity Caves | Discovered exit to Factory (range 5) 11775 | -4/Proximity Caves | Entered Factory 11775 | -4/Factory | Evolved 2 slots: Power x1, Propulsion x1 11776 | -4/Factory | Identified exit to Upper Caves 11776 | -4/Factory | Identified exit to Extension 11778 | -4/Factory | Loaded intel: 4 garrison access locations 11845 | -4/Factory | Identified exit to Armory 11881 | -4/Factory | Tech Extrapolator generated special schematic: Deep Structural Scanner 12066 | -4/Factory | Loaded intel: 8 recycling unit locations 12125 | -4/Factory | Spotted B-86 Titan 12129 | -4/Factory | Learned Factory garrison access intel 12140 | -4/Factory | Discovered new exit (range 8) 12147 | -4/Factory | Identified exit to Research 12193 | -4/Factory | Discovered exit to Research (range 15) 12226 | -4/Factory | Incoming investigation squad redirected 12260 | -4/Factory | Learned 2 Upper Caves zone layouts 12265 | -4/Factory | Incoming investigation squad redirected 12270 | -4/Factory | Sucked down chute 12270 | -4/Factory | Entered Waste 12271 | -4/Waste | Met a frightened Derelict 12272 | -4/Waste | Found Prototype Reactor 12272 | -4/Waste | Identified Vortex Chain Reactor 12283 | -4/Waste | Spotted C-40 Crusher 12285 | -4/Waste | EMP discharged 12292 | -4/Waste | Spotted C-40 Crusher 12294 | -4/Waste | Lost 6 parts (1p4n1w) 12295 | -4/Waste | 1 allies followed down the chute 12296 | -4/Waste | Spotted C-40 Crusher 12297 | -4/Waste | Crushed by Compactor (0 parts destroyed, 2 dropped) 12302 | -4/Waste | Spotted C-40 Crusher 12303 | -4/Waste | Spotted C-40 Crusher 12305 | -4/Waste | Discovered new exit (range 10) 12308 | -4/Waste | Identified exit to Factory 12309 | -4/Waste | Entered Factory 12310 | -4/Factory | Loaded intel: 4 garrison access locations 12420 | -4/Factory | Repaired Nuclear Pulse Array 12565 | -4/Factory | Fabricated X-77 Beamer? 12662 | -4/Factory | Fabricated Field Propulsion Drive (x2) 12787 | -4/Factory | Fabricated Deep Structural Scanner (x1) 12833 | -4/Factory | Fabricated Fusion Reactor (x1) 12835 | -4/Factory | Discovered exit to Armory (range 15) 13012 | -4/Factory | Loaded intel: 8 recycling unit locations 13015 | -4/Factory | Spotted B-86 Titan 13059 | -4/Factory | Search patrols dispatched 13063 | -4/Factory | Tech Extrapolator generated special schematic: Machine Rigger 13075 | -4/Factory | Discovered exit to Upper Caves (range 14) 13110 | -4/Factory | Discovered exit to Upper Caves (range 9) 13253 | -4/Factory | Learned Research non-interactive machine intel 13309 | -4/Factory | Search patrols dispatched 13313 | -4/Factory | Learned Research security intel 13347 | -4/Factory | Learned 2 Proximity Caves zone layouts 13390 | -4/Factory | Learned location of 1 exit from Quarantine 13427 | -4/Factory | Entered Upper Caves 13428 | -4/Upper Caves | Identified exit to Upper Caves 13452 | -4/Upper Caves | Learned location of 1 exit from Research 13478 | -4/Upper Caves | Attracted the attention of an 0b10 outpost 13516 | -4/Upper Caves | Entered another Upper Caves area 13518 | -4/Upper Caves | Discovered exit to Research (range 9) 13622 | -4/Upper Caves | Discovered new exit (range 19) 13627 | -4/Upper Caves | Identified exit to Warlord 13628 | -4/Upper Caves | Entered Warlord 13637 | -4/Warlord | System corruption cleaned by Quarantine Array 13680 | -4/Warlord | Opened Warlord's prototype stash 13686 | -4/Warlord | Found Prototype Hackware 13686 | -4/Warlord | Identified System Mapper 13694 | -4/Warlord | Found Prototype Processor 13697 | -4/Warlord | Found Vortex Chain Reactor 13723 | -4/Warlord | Visited the Vortex Lab 13725 | -4/Warlord | Found Prototype Launcher 13725 | -4/Warlord | Identified Vortex Catalyst Activator 13728 | -4/Warlord | Found Prototype Energy Gun 13728 | -4/Warlord | Identified Vortex Rifle 13730 | -4/Warlord | Found Prototype Energy Cannon 13730 | -4/Warlord | Identified Vortex Cannon 13731 | -4/Warlord | Warlord's base attacked by MAIN.C 13733 | -4/Warlord | Found Prototype Energy Gun 13733 | -4/Warlord | Identified Vortex Shotgun 13781 | -4/Warlord | Rebuked by Warlord 13923 | -4/Warlord | P-80 Master assimilated allied Disruptor 7c 13963 | -4/Warlord | Lost 4 allies 13972 | -4/Warlord | Build established: Hacker-Sprinter 14081 | -4/Warlord | Warlord forces counterattacked 14140 | -4/Warlord | Opened side exit 14157 | -4/Warlord | Lost 10 allies 14204 | -4/Warlord | Spotted Executioner 14207 | -4/Warlord | Discovered new exit (range 8) 14209 | -4/Warlord | Identified exit to Proximity Caves 14209 | -4/Warlord | Entered Proximity Caves 14234 | -3/Proximity Caves | Lost 10 allies 14352 | -3/Proximity Caves | Discovered exit to Research (range 11) 14555 | -3/Proximity Caves | Tech Extrapolator generated special schematic: Heat Bomb Trap 14651 | -3/Proximity Caves | Entered Research 14651 | -3/Research | Evolved 2 slots: Utility x2 14652 | -3/Research | Identified exit to Testing 14653 | -3/Research | Identified exit to Research 14655 | -3/Research | Loaded intel: 60 non-interactive machine locations 14656 | -3/Research | Loaded intel: 4 garrison access locations 14657 | -3/Research | Identified Exp. Target Analyzer 14869 | -3/Research | Loaded intel: 5 recycling unit locations 14884 | -3/Research | Spotted B-86 Titan 14919 | -3/Research | Found Prototype Device 14919 | -3/Research | Identified Adv. Kinecellerator 14960 | -3/Research | Build established: Hacker-Ninja 15180 | -3/Research | Spotted B-86 Titan 15185 | -3/Research | Central database locked down 15211 | -3/Research | Tech Extrapolator generated special schematic: Wartreads 15354 | -3/Research | Learned Testing stockpile data 15426 | -3/Research | Learned 8 Access zone layouts 15463 | -3/Research | Spotted B-86 Titan 15479 | -3/Research | Entered Testing 15499 | -3/Testing | Lost 3 parts (1n2u) 15563 | -3/Testing | Fabricated M-36 Artificer (x1) 15662 | -3/Testing | Found Prototype Device 15662 | -3/Testing | Identified Exp. Thermal Shield 15760 | -3/Testing | Found Prototype Energy Gun 15760 | -3/Testing | Identified Tachyon Dispersion Ray 15833 | -3/Testing | Found Prototype Protection 15988 | -3/Testing | Identified SHELL Armor 16008 | -3/Testing | Entered Research 16008 | -2/Research | Accompanied by 1 ally 16008 | -2/Research | Evolved 2 slots: Propulsion x2 16152 | -2/Research | Found Exp. Signal Interpreter 16184 | -2/Research | Spotted B-90 Cyclops 16188 | -2/Research | Befriended a Behemoth using the annoying Tinkerer's hack 16292 | -2/Research | Identified exit to Garrison 16299 | -2/Research | Discovered new exit (range 4) 16299 | -2/Research | Identified exit to Access 16360 | -2/Research | Adv. Hacking Suite fried by hacking feedback 16376 | -2/Research | Tech Extrapolator generated special schematic: Active Sensor Spoofer 16492 | -2/Research | Discovered exit to Access (range 15) 16494 | -2/Research | Identified exit to Quarantine 16658 | -2/Research | Learned 4 Access zone layouts 16739 | -2/Research | Entered Quarantine 16741 | -2/Quarantine | Loaded intel: 17 terminal locations 16742 | -2/Quarantine | Loaded intel: 1 garrison access location 16754 | -2/Quarantine | Found Alien Artifact 16767 | -2/Quarantine | Identified Terrabomb 16772 | -2/Quarantine | Found Prototype Device 16772 | -2/Quarantine | Identified Thermal Barrier 16797 | -2/Quarantine | Found Alien Artifact 16801 | -2/Quarantine | Identified Core Reset Matrix 16820 | -2/Quarantine | Found Alien Energy Cannon 16840 | -2/Quarantine | Identified Core Cannon 16909 | -2/Quarantine | Learned Section 7 trap positions 16916 | -2/Quarantine | Found Alien Artifact 17006 | -2/Quarantine | Found Alien Artifact 17013 | -2/Quarantine | Found Alien Artifact 17013 | -2/Quarantine | Identified Dimensional Node Initializer 17013 | -2/Quarantine | Initialized slip node 17015 | -2/Quarantine | Found Dimensional Node Initializer 17020 | -2/Quarantine | Found Alien Artifact 17026 | -2/Quarantine | Learned Research security intel 17070 | -2/Quarantine | Identified Hpw. Transdimensional Reconstructor (x2) 17071 | -2/Quarantine | Learned Research recycling unit intel 17075 | -2/Quarantine | Identified Subatomic Replicator 17075 | -2/Quarantine | Used Subatomic Replicator to create Alien Artifact 17081 | -2/Quarantine | Identified Supercharged TR 17105 | -2/Quarantine | Learned Research emergency access door positions 17122 | -2/Quarantine | Tech Extrapolator generated special schematic: Telecube 17131 | -2/Quarantine | Learned 12 Research zone layouts 17161 | -2/Quarantine | Spotted Fortress 17165 | -2/Quarantine | Learned Access emergency access door positions 17171 | -2/Quarantine | Discovered new exit (range 5) 17171 | -2/Quarantine | Discovered new exit (range 6) 17172 | -2/Quarantine | Identified exit to Section 7 17172 | -2/Quarantine | Identified exit to Protoforge 17209 | -2/Quarantine | Learned 4 Research zone layouts 17223 | -2/Quarantine | Entered Protoforge 17248 | -2/Protoforge | Superfortress began startup sequence 17271 | -2/Protoforge | Spotted Hotshot 17271 | -2/Protoforge | Spotted Hotshot 17299 | -2/Protoforge | Spotted Hotshot 17299 | -2/Protoforge | Spotted Hotshot 17312 | -2/Protoforge | Discovered exit to Access (range 3) 17353 | -2/Protoforge | Build established: Hacker-Sprinter 17392 | -2/Protoforge | Spotted Hotshot 17393 | -2/Protoforge | Spotted B-90 Cyclops 17394 | -2/Protoforge | Befriended a Behemoth using the annoying Tinkerer's hack 17399 | -2/Protoforge | Spotted Hotshot 17416 | -2/Protoforge | Incoming investigation squad redirected 17452 | -2/Protoforge | Repaired Com. Particle Reactor? 17617 | -2/Protoforge | Additional patrols dispatched to research labs 17656 | -2/Protoforge | Crushed by falling debris 17686 | -2/Protoforge | Spotted EXE-6 17686 | -2/Protoforge | Spotted EXE-6 17692 | -2/Protoforge | UFD initiated attack on Protoforge 17692 | -2/Protoforge | Loaded intel: 3 recycling unit locations 17726 | -2/Protoforge | Found Prototype Ballistic Gun 17726 | -2/Protoforge | Identified Cep. XC Strikerail 17728 | -2/Protoforge | Optimus greeted in Protoforge 17728 | -2/Protoforge | Found Cep. XC Strikerail 17734 | -2/Protoforge | Initialized slip node 17752 | -2/Protoforge | Spotted Hotshot 17753 | -2/Protoforge | Spotted Hotshot 17753 | -2/Protoforge | Warped through subspace to slip node 17755 | -2/Protoforge | Core integrity fell below 50% 17764 | -2/Protoforge | Spotted Decapitator 17766 | -2/Protoforge | Destroyed Decapitator 17780 | -2/Protoforge | Found Prototype Launcher 17780 | -2/Protoforge | Identified Com. Tesla Bomb Launcher 17785 | -2/Protoforge | Found Prototype Slashing Weapon 17785 | -2/Protoforge | Identified Exp. Terror Saw 17789 | -2/Protoforge | Found Prototype Processor 17789 | -2/Protoforge | Identified Exp. Core Analyzer 17806 | -2/Protoforge | Lost 6 allies 17822 | -2/Protoforge | Forge Plexus network access discovered 17827 | -2/Protoforge | Met 7R-MNS 17865 | -2/Protoforge | Scraphulk reinforcements arrived 17869 | -2/Protoforge | Scraphulk reinforcements arrived 18022 | -2/Protoforge | Spotted Striker 18030 | -2/Protoforge | Destroyed Striker 18033 | -2/Protoforge | Spotted Striker 18034 | -2/Protoforge | Allies destroyed Striker 18200 | -2/Protoforge | Found Crosscalibrator 18211 | -2/Protoforge | Found Cep. Antigrav Storage Unit 18213 | -2/Protoforge | Found Cep. NT7 Matterbank 18214 | -2/Protoforge | Found Cep. Chromion Battery 18221 | -2/Protoforge | Spotted Immortal 18222 | -2/Protoforge | Spotted Decapitator 18222 | -2/Protoforge | Spotted Decapitator 18222 | -2/Protoforge | Spotted Decapitator 18233 | -2/Protoforge | Found Cep. Miniperforator 18234 | -2/Protoforge | Found Faulty Cep. Miniperforator 18237 | -2/Protoforge | Found Exp. Jetlance 18263 | -2/Protoforge | Destroyed Immortal 18272 | -2/Protoforge | Destroyed Decapitator 18326 | -2/Protoforge | Found Prototype Device 18326 | -2/Protoforge | Identified Cep. Antimissile System 18329 | -2/Protoforge | Found Exp. EM Shield 18374 | -2/Protoforge | Spotted V116-v 18444 | -2/Protoforge | Spotted Decapitator 18587 | -2/Protoforge | Found Exp. Active Sensor Suite 18631 | -2/Protoforge | Spotted Decapitator 18631 | -2/Protoforge | Spotted Decapitator 18775 | -2/Protoforge | Spotted AP7-3 18775 | -2/Protoforge | Spotted AP7-3 18838 | -2/Protoforge | Spotted Striker 18839 | -2/Protoforge | Spotted Striker 18846 | -2/Protoforge | Destroyed Striker 18854 | -2/Protoforge | Destroyed Executioner 18865 | -2/Protoforge | Destroyed Executioner 18874 | -2/Protoforge | Spotted Striker 18875 | -2/Protoforge | Spotted Striker 18890 | -2/Protoforge | Destroyed 13 combat bots 18890 | -2/Protoforge | Lost 11 allies 18903 | -2/Protoforge | Build established: Hacker-Scout 18919 | -2/Protoforge | Spotted Decapitator 19073 | -2/Protoforge | Destroyed AP7-3 19077 | -2/Protoforge | Found Prototype Device 19077 | -2/Protoforge | Identified Exp. ECM Suite 19116 | -2/Protoforge | Destroyed AP7-3 19131 | -2/Protoforge | Found Cep. Dimensional Manipulator 19132 | -2/Protoforge | Found Faulty Cep. Dimensional Manipulator 19134 | -2/Protoforge | Found Faulty Cep. Cloak Mesh 19136 | -2/Protoforge | Found Faulty Cep. Cloak Mesh 19137 | -2/Protoforge | Found Cep. Core Analysis Suite 19170 | -2/Protoforge | UFD reported confirmed Drillbomb installation 19215 | -2/Protoforge | Found Cep. Cloak Mesh 19218 | -2/Protoforge | Found Cld. Directed Potential Cannon 19234 | -2/Protoforge | Found Cep. Zero-point Core 19240 | -2/Protoforge | Found Cep. Zero-point Core 19248 | -2/Protoforge | Found Faulty Cep. Zero-point Core 19301 | -2/Protoforge | Found Cep. Nanofilaments [Conductive] 19301 | -2/Protoforge | Installed Cep. Nanofilaments [Conductive], 2 resistances modified: TH -15%, EM +25% 19309 | -2/Protoforge | Found Transdimensional Reconstructor 19381 | -2/Protoforge | Found Cep. Disintegration Ray 19382 | -2/Protoforge | Found Cep. XC Strikerail 19397 | -2/Protoforge | Found Cep. Fieldthrust Drive 19400 | -2/Protoforge | Found Faulty Cep. Fieldthrust Drive 19403 | -2/Protoforge | Found Faulty Cep. Fieldthrust Drive 19610 | -2/Protoforge | Found Cep. XC Strikerail 19629 | -2/Protoforge | Spotted Striker 19649 | -2/Protoforge | Spotted Striker 19681 | -2/Protoforge | Spotted Executioner 19690 | -2/Protoforge | Spotted Executioner 19695 | -2/Protoforge | Spotted Striker 19795 | -2/Protoforge | Found UFD Drillbomb 19807 | -2/Protoforge | Installed UFD Drillbomb at designated target 19807 | -2/Protoforge | UFD reported confirmed Drillbomb installation 19844 | -2/Protoforge | Found UFD Drillbomb 19849 | -2/Protoforge | Found UFD Drillbomb 19866 | -2/Protoforge | Installed UFD Drillbomb at designated target 19866 | -2/Protoforge | UFD reported confirmed Drillbomb installation 19894 | -2/Protoforge | Spotted Striker 19895 | -2/Protoforge | Installed UFD Drillbomb at designated target 19895 | -2/Protoforge | UFD reported confirmed Drillbomb installation 19896 | -2/Protoforge | Build established: Hacker-Ninja 19896 | -2/Protoforge | Spotted Striker 19899 | -2/Protoforge | Spotted Striker 19936 | -2/Protoforge | Lost 4 allies 20220 | -2/Protoforge | Spotted Executioner 20220 | -2/Protoforge | Spotted Striker 20229 | -2/Protoforge | Spotted Striker 20254 | -2/Protoforge | Spotted Executioner 20359 | -2/Protoforge | Found UFD Drillbomb 20376 | -2/Protoforge | Installed UFD Drillbomb at designated target 20376 | -2/Protoforge | UFD reported confirmed Drillbomb installation 20384 | -2/Protoforge | Spotted Executioner 20399 | -2/Protoforge | Spotted Executioner 20400 | -2/Protoforge | Spotted Striker 20400 | -2/Protoforge | Spotted Executioner 20400 | -2/Protoforge | Spotted Executioner 20400 | -2/Protoforge | Spotted Executioner 20401 | -2/Protoforge | Found UFD Drillbomb 20434 | -2/Protoforge | Installed UFD Drillbomb at designated target 20434 | -2/Protoforge | UFD reported confirmed Drillbomb installation 20502 | -2/Protoforge | Spotted Decapitator 20514 | -2/Protoforge | Found UFD Drillbomb 20535 | -2/Protoforge | Installed UFD Drillbomb at designated target 20535 | -2/Protoforge | UFD reported confirmed Drillbomb installation 20546 | -2/Protoforge | Found UFD Drillbomb 20552 | -2/Protoforge | Spotted Striker 20557 | -2/Protoforge | Spotted Executioner 20600 | -2/Protoforge | Spotted Striker 20609 | -2/Protoforge | Installed UFD Drillbomb at designated target 20609 | -2/Protoforge | UFD reported confirmed Drillbomb installation 20651 | -2/Protoforge | Spotted Striker 20660 | -2/Protoforge | Destroyed Striker 20666 | -2/Protoforge | Destroyed Striker 20689 | -2/Protoforge | Destroyed Hotshot 20691 | -2/Protoforge | Destroyed Hotshot 20764 | -2/Protoforge | Destroyed 9 combat bots 20837 | -2/Protoforge | Destroyed Hotshot 20837 | -2/Protoforge | Destroyed Hotshot 20842 | -2/Protoforge | Spotted Executioner 20858 | -2/Protoforge | Destroyed 8 combat bots 20872 | -2/Protoforge | Spotted Striker 20877 | -2/Protoforge | Spotted Striker 20904 | -2/Protoforge | Spotted Executioner 20904 | -2/Protoforge | Spotted Executioner 20985 | -2/Protoforge | Spotted Executioner 21029 | -2/Protoforge | Destroyed Executioner 21033 | -2/Protoforge | Destroyed Executioner 21041 | -2/Protoforge | Spotted Executioner 21044 | -2/Protoforge | Spotted Striker 21053 | -2/Protoforge | Spotted Striker 21075 | -2/Protoforge | Lost 7 allies 21149 | -2/Protoforge | Destroyed Executioner 21173 | -2/Protoforge | Spotted Executioner 21178 | -2/Protoforge | Spotted Striker 21192 | -2/Protoforge | Destroyed Striker 21208 | -2/Protoforge | Spotted Executioner 21209 | -2/Protoforge | Spotted Striker 21314 | -2/Protoforge | Lost 10 allies 21324 | -2/Protoforge | Destroyed Executioner 21332 | -2/Protoforge | UFD reported confirmed Drillbomb installation 21390 | -2/Protoforge | Destroyed Striker 21393 | -2/Protoforge | Spotted Decapitator 21462 | -2/Protoforge | Found UFD Drillbomb 21469 | -2/Protoforge | Spotted Executioner 21473 | -2/Protoforge | Spotted Striker 21473 | -2/Protoforge | Spotted Striker 21559 | -2/Protoforge | Spotted Striker 21559 | -2/Protoforge | Spotted Executioner 21567 | -2/Protoforge | Spotted Striker 21567 | -2/Protoforge | Spotted Executioner 21567 | -2/Protoforge | Spotted Striker 21636 | -2/Protoforge | Installed UFD Drillbomb at designated target 21636 | -2/Protoforge | UFD reported confirmed Drillbomb installation 21637 | -2/Protoforge | UFD began Drillbomb countdown 21637 | -2/Protoforge | Entered Access 21637 | -1/Access | Evolved 2 slots: Utility x2 21721 | -1/Access | Identified exit to Command 21742 | -1/Access | Spotted Executioner 21742 | -1/Access | Spotted Executioner 21763 | -1/Access | Spotted B-99 Colossus 21887 | -1/Access | First assault squad dispatched 21897 | -1/Access | Entered Command 21929 | -1/Command | Build established: Ninja 21954 | -1/Command | Spotted Executioner 22048 | -1/Command | Destroyed 8 combat bots 22147 | -1/Command | First assault squad dispatched 22228 | -1/Command | Spotted B-99 Colossus 22243 | -1/Command | Adv. Hacking Suite fried by hacking feedback 22281 | -1/Command | Spotted B-99 Colossus 22349 | -1/Command | Used Core Reset Matrix 22366 | -1/Command | Disengaged cave seal 22422 | -1/Command | High security lockdown imminent 22447 | -1/Command | Lost 3 allies 22456 | -1/Command | Spotted M Guard 22459 | -1/Command | Spotted M Guard 22459 | -1/Command | Spotted Combat Programmer 22460 | -1/Command | Destroyed M Guard 22460 | -1/Command | Spotted Combat Programmer 22475 | -1/Command | Destroyed M Guard 22477 | -1/Command | Destroyed Combat Programmer 22481 | -1/Command | Destroyed Combat Programmer 22481 | -1/Command | All MAIN.C guards destroyed 22502 | -1/Command | High security lockdown engaged 22550 | -1/Command | Met MAIN.C 22569 | -1/Command | 0b10 Conduit disabled 22634 | -1/Command | Destroyed MAIN.C Shell 22637 | -1/Command | MAIN.C activated Command garrisons 22675 | -1/Command | Lost 6 parts (1p3n2u) 22708 | -1/Command | Spotted Executioner 22708 | -1/Command | Spotted Executioner 22716 | -1/Command | Found Prototype Processor 22716 | -1/Command | Identified Exp. Targeting Computer 22718 | -1/Command | Found Prototype Processor 22718 | -1/Command | Identified Exp. Core Analyzer 22720 | -1/Command | Found Prototype Device 22720 | -1/Command | Identified Exp. System Purifier 22725 | -1/Command | Found Prototype Device 22725 | -1/Command | Identified Exp. Transmission Jammer 22727 | -1/Command | Found Prototype Device 22727 | -1/Command | Identified Exp. Force Field 22735 | -1/Command | Discovered new exit (range 9) 22739 | -1/Command | Identified exit to Surface 22774 | -1/Command | Core integrity fell below 50% 22779 | -1/Command | Emitted hypermatrix ping 22779 | *** | Heading to fleet! Last Messages --------------- 22765_ C-30 ARC bursts open, deploying its payload. 22765_ H-88 Terminator unfolds itself. 22765_ Slug penetrates Reinforced Barrier. 22766_ Cep. XC Strikerail destroyed. 22766_ Electron Diverter destroyed. 22768_ Slug penetrates Reinforced Barrier. 22769_ Q-thruster destroyed. 22770_ Cep. Dimensional Manipulator destroyed. 22771_ Extracted 10 matter. 22772_ Slug penetrates Reinforced Barrier. 22773_ MAIN.C suffers critical hit (Impale). 22775_ Slug penetrates Reinforced Barrier. 22776_ MAIN.C suffers critical hit (Impale). 22777_ Penetrated by Slug. 22778_ Slug penetrates Reinforced Barrier. 22778_ Electron Diverter destroyed. 22779_ Emitted hypermatrix ping. 22779_ Slug penetrates Reinforced Barrier. 22779_ Slammed into H-88 Terminator. Map ----- +----------------------------------------------------+ | ???????????????????????????# ######## | | ???????????????????????????# % | | ???????????????????????????# "" | | ???????????????????????????# " | | ???????????????#/###+####### ##### """"" | | ????????????? #???# " """ | | ????????????? #???# """ | | ?????????????? #???######### | | ?????????????? #???????????? | | ??????????????#### #???????????? | | ?????????????????# #???????????? | | ?????????????????# """" #???????????? | | ?????????????????# """" "" "" #???????????? | | ?????????????????# """" ""T"" #???????????? | | ?????????????????# """" """ #???????????? | | ?????????????????# % #########???? | | ?????????????????+ #???? | | ?????????????????# T#???? | | ?????????????????# #######+###########"" ##???? | | ?????????????????## ???????# #####""""##??? | | ??????????????????? ????????# ##]]] ="#??? | | ????????????????????????????# "##[]] * =# #?? | | ????????????????????????????# ""##%! =## #? | | ???????????????????????###### ""## ! **==#?# # | | ???????????????????????#h%% # ""##########??# | | ???????????????????????#%@ # ""#????????????# | | ???????????????????????#!%M # T"#????????????? | | ???????????????????????###hE# ""#????????????? | | ?????????????????????????#h # ""#????????????? | | ?????????????????????????#Eh# ""#????????????? | | ?????????????????????????# # ""#????????????? | | ?????????????????????????# # "#????????????? | | ?????????????????????????# # #????????????? | | ?????????????????????????# g #????????????? | | ????????????????????######H##########????????????? | | ????????????????????# #????????????????? | | ????????????????????# #????????????????? | | ????????????????????# "" "" #????????????????? | | ????????????????????# ""T"" #????????????????? | | ????????????????????# """ #????????????????? | | ????????????????????+ ! #????????????????? | | ????????????????????# #????????????????? | | ????????????????????#############????????????????? | | ?????????????????????????????????????????????????? | | ?????????????????????????????????????????????????? | | ?????????????????????????????????????????????????? | | ?????????????????????????????????????????????????? | | ?????????????????????????????????????????????????? | | ?????????????????????????????????????????????????? | | ?????????????????????????????????????????????????? | +----------------------------------------------------+ Best States ------------- Heat Dissipation 72 Energy Generation 53 Energy Capacity 870 Matter Stores 300 Matter Capacity 800 Sight Range 23 Robot Scan Range 20 Terrain Scan Density 10 ECM Strength 3 Cloak Strength 9 Additional Mass Support 30 Corruption Block 20 Armor Coverage 900 Resistance: EM 100 Propulsion Shielding 15 Weapon Shielding 90 Point Defense Rating 480 Evasion (%) 80 Targeting Accuracy 12 Melee Accuracy 8 Core Analysis 11 Recoil Reduction 2 Kinecelleration 50 Offensive Hacking 48 Defensive Hacking 14 Authchip Count 2 Item Schematics ----------------- None Robot Schematics ------------------ None Fabricated ------------ Shock Maul | x1 | -6/Factory | Preloaded Field Propulsion Drive | x2 | -5/Factory | Authchip X-77 Beamer | x2 | -4/Factory | Preloaded Field Propulsion Drive | x2 | -4/Factory | Authchip Deep Structural Scanner | x1 | -4/Factory | Authchip Fusion Reactor | x1 | -4/Factory M-36 Artificer | x1 | -3/Testing | Preloaded Repaired ---------- Lgt. Fission Core | 30% | -5/Factory Impulse Thruster Array | 6% | -5/Factory | Broken Nuclear Pulse Array | 15% | -4/Factory Com. Particle Reactor | 20% | -2/Protoforge Alien Tech Used ----------------- Integrated Dissipator Dimensional Node Initializer Subatomic Replicator Core Cannon Supercharged TR Concept Nanofilaments [Conductive] Core Reset Matrix Achievements -------------- Superinsulated Woof! Challenges ------------ None Game ------ Seed FocalThunderExtractor Manual? 0 Play Time 08:09:02 Cumulative 481.3 hours Start 2025.08.18 @ 17:59:10 End 2025.08.20 @ 19:29:41 Sessions 9 Manual Loads 0 Difficulty Rogue Special Mode None Game No. 209 Rogue 209 Adventurer 0 Explorer 0 Win Type 2 Total 32 Types 13/2/6/2/5/1/0/2/0/1 Lore% 95 Gallery% 86 Achievement% 80 Wizard Run 0 Options --------- Layout 1 ASCII 0 Keyboard 0 Movement Numpad Keybinds 0 Fullscreen 1 Font 24/Smallcaps Map View 50x35 Zoom Use 0% Tactical HUD 1 Map Filters NONE Filters NONE Steam 1 RUN: 4b839fb6-8143-4045-a33b-267f2072f519